Workbook

Sheet Introduction
A3: . . . . . . . . . . . . . . . . . . . . . . . . . . . . . . . . . . . . . . . . . . . . . . . . .
A5: Guidelines For Estimating
A6: ="Special Crop Production Costs - "&I11 -> Special Crop Production Costs - 2023
H11: Date: January, | I11: 2023
B17: The following budgets are estimates of the cost of producing selected special field crops in Manitoba. General Manitoba Agriculture recommendations are assumed in using fertilizers and chemical inputs. These figures provide an economic evaluation of the crops and estimated yields required to cover all costs. Costs include labour, investment and depreciation, but do not include management costs, nor do they necessarily represent the average cost of production in Manitoba.
B25: These budgets may be adjusted by putting in your own figures. As a producer you are encouraged to calculate your own costs of production for various crops. On each farm, costs and yields differ due to soil type, climate and agronomic practices.
B30: This tool is available as an Excel worksheet at:
B38: is also available to help
B39: determine machinery costs.
B41: The | G41: is also available for producers to
B42: estimate the cash cost of producing field crops on their farm on an annual basis. CropPlan calculates marginal returns, breakeven yields, breakeven crop prices on total production and remaining unsold inventory, land and machinery cost analysis and cash based finanical ratios.
B54: Note: This budget is only a guide and is not intended as an in depth study of the cost of production of this industry. Interpretation and use of this information is the responsibility of the user. If you need help with a budget, contact a Farm Management Specialist.

Sheet Summary
A1: =IF('Data (HIDE)'!B13="Manitoba","Special Crop Production Costs "&Introduction!I11&" Guidelines (Dollars Per Acre)","Special Crop Production Costs "&Introduction!I11&" Guidelines "&'Data (HIDE)'!B13&" (Dollars Per Acre)") -> Special Crop Production Costs 2023 Guidelines (Dollars Per Acre)
C2: ='Data (HIDE)'!$B$16 -> Black Bean | D2: ='Data (HIDE)'!$B$17 -> Kidney Bean | E2: ='Data (HIDE)'!$B$18 -> Hempseed | F2: ='Data (HIDE)'!$B$19 -> Fababean | G2: ='Data (HIDE)'!$B$20 -> Buckwheat | H2: ='Data (HIDE)'!$B$21 -> Canaryseed | I2: ='Data (HIDE)'!$B$22 -> Lentil | K2: Your Farm
A3: A. Operating Costs
B4: Seed & Treatment | C4: ='Data (HIDE)'!$L$16 -> 115 | D4: ='Data (HIDE)'!$L$17 -> 166.5 | E4: ='Data (HIDE)'!$L$18 -> 58.75 | F4: ='Data (HIDE)'!$L$19 -> 54 | G4: ='Data (HIDE)'!$L$20 -> 25 | H4: ='Data (HIDE)'!$L$21 -> 33 | I4: ='Data (HIDE)'!$L$22 -> 70
B5: Fertilizer | C5: ='Data (HIDE)'!$M$16 -> 113.2378386 | D5: ='Data (HIDE)'!$M$17 -> 113.2378386 | E5: ='Data (HIDE)'!$M$18 -> 113.2378386 | F5: ='Data (HIDE)'!$M$19 -> 54.80964045 | G5: ='Data (HIDE)'!$M$20 -> 61.14161539 | H5: ='Data (HIDE)'!$M$21 -> 97.95243476 | I5: ='Data (HIDE)'!$M$22 -> 28.34981403
B6: Crop Protection | C6: ='Data (HIDE)'!$N$16+'Data (HIDE)'!$O$16+'Data (HIDE)'!$P$16 -> 124.52 | D6: ='Data (HIDE)'!$N$17++'Data (HIDE)'!$O$17+'Data (HIDE)'!$P$17 -> 124.52 | E6: ='Data (HIDE)'!$N$18+'Data (HIDE)'!$O$18+'Data (HIDE)'!$P$18 -> 52.13 | F6: ='Data (HIDE)'!$N$19+'Data (HIDE)'!$O$19+'Data (HIDE)'!$P$19 -> 15.5 | G6: ='Data (HIDE)'!$N$20+'Data (HIDE)'!$O$20+'Data (HIDE)'!$P$20 -> 6.5 | H6: ='Data (HIDE)'!$N$21+'Data (HIDE)'!$O$21+'Data (HIDE)'!$P$21 -> 30.67 | I6: ='Data (HIDE)'!$N$22+'Data (HIDE)'!$O$22+'Data (HIDE)'!$P$22 -> 30.35
B7: if delete it will affect crop rotation and fuel calcs
B8: if delete it will affect crop rotation and fuel calcs
B9: Fuel | C9: ='Data (HIDE)'!$Q$16 -> 37.89370547 | D9: ='Data (HIDE)'!$Q$17 -> 37.22257232 | E9: ='Data (HIDE)'!$Q$18 -> 38.71554474 | F9: ='Data (HIDE)'!$Q$19 -> 35.04942505 | G9: ='Data (HIDE)'!$Q$20 -> 33.59715133 | H9: ='Data (HIDE)'!$Q$21 -> 36.83823069 | I9: ='Data (HIDE)'!$Q$22 -> 31.89509921
B10: Machinery Operating & Lease | C10: ='Data (HIDE)'!$R$16+'Data (HIDE)'!$S$16+'Data (HIDE)'!$T$16 -> 25 | D10: ='Data (HIDE)'!$R$17+'Data (HIDE)'!$S$17+'Data (HIDE)'!$T$17 -> 25 | E10: ='Data (HIDE)'!$R$18+'Data (HIDE)'!$S$18+'Data (HIDE)'!$T$18 -> 25 | F10: ='Data (HIDE)'!$R$19+'Data (HIDE)'!$S$19+'Data (HIDE)'!$T$19 -> 25 | G10: ='Data (HIDE)'!$R$20+'Data (HIDE)'!$S$20+'Data (HIDE)'!$T$20 -> 25 | H10: ='Data (HIDE)'!$R$21+'Data (HIDE)'!$S$21+'Data (HIDE)'!$T$21 -> 25 | I10: ='Data (HIDE)'!$R$22+'Data (HIDE)'!$S$22+'Data (HIDE)'!$T$22 -> 25
B11: if delete it will affect crop rotation and fuel calcs
B12: if delete it will affect crop rotation and fuel calcs
B13: Labour - Hired | C13: ='Data (HIDE)'!$U$16 -> 5.2 | D13: ='Data (HIDE)'!$U$17 -> 5.2 | E13: ='Data (HIDE)'!$U$18 -> 5.2 | F13: ='Data (HIDE)'!$U$19 -> 5.2 | G13: ='Data (HIDE)'!$U$20 -> 5.2 | H13: ='Data (HIDE)'!$U$21 -> 5.2 | I13: ='Data (HIDE)'!$U$22 -> 5.2
B14: Crop Insurance | C14: ='Data (HIDE)'!$V$16 -> 40.5 | D14: ='Data (HIDE)'!$V$17 -> 57 | E14: ='Data (HIDE)'!$V$18 -> 36.75 | F14: ='Data (HIDE)'!$V$19 -> 36.75 | G14: ='Data (HIDE)'!$V$20 -> 19.75 | H14: ='Data (HIDE)'!$V$21 -> 30.75 | I14: ='Data (HIDE)'!$V$22 -> 20.5
B15: Hail Insurance | C15: ='Data (HIDE)'!$W$16 -> 21.875 | D15: ='Data (HIDE)'!$W$17 -> 21.875 | E15: ='Data (HIDE)'!$W$18 -> 25 | F15: ='Data (HIDE)'!$W$19 -> 21.875 | G15: ='Data (HIDE)'!$W$20 -> 31.25 | H15: ='Data (HIDE)'!$W$21 -> 12.5 | I15: ='Data (HIDE)'!$W$22 -> 16.25
B16: Drying & Other Costs | C16: ='Data (HIDE)'!$X$16+'Data (HIDE)'!$AA$16 -> 17.75 | D16: ='Data (HIDE)'!$X$17+'Data (HIDE)'!$AA$17 -> 17.75 | E16: ='Data (HIDE)'!$X$18+'Data (HIDE)'!$AA$18 -> 17.75 | F16: ='Data (HIDE)'!$X$19+'Data (HIDE)'!$AA$19 -> 17.75 | G16: ='Data (HIDE)'!$X$20+'Data (HIDE)'!$AA$20 -> 17.75 | H16: ='Data (HIDE)'!$X$21+'Data (HIDE)'!$AA$21 -> 17.75 | I16: ='Data (HIDE)'!$X$22+'Data (HIDE)'!$AA$22 -> 17.75
B17: Land Taxes | C17: ='Data (HIDE)'!$Y$16 -> 17.5 | D17: ='Data (HIDE)'!$Y$17 -> 17.5 | E17: ='Data (HIDE)'!$Y$18 -> 17.5 | F17: ='Data (HIDE)'!$Y$19 -> 17.5 | G17: ='Data (HIDE)'!$Y$20 -> 17.5 | H17: ='Data (HIDE)'!$Y$21 -> 17.5 | I17: ='Data (HIDE)'!$Y$22 -> 17.5
B18: if delete it will affect crop rotation and fuel calcs
B19: Storage Costs | C19: ='Data (HIDE)'!$Z$16 -> 7.361965277 | D19: ='Data (HIDE)'!$Z$17 -> 6.279323324 | E19: ='Data (HIDE)'!$Z$18 -> 4.428989806 | F19: ='Data (HIDE)'!$Z$19 -> 9.960305963 | G19: ='Data (HIDE)'!$Z$20 -> 4.157345098 | H19: ='Data (HIDE)'!$Z$21 -> 8.054856126 | I19: ='Data (HIDE)'!$Z$22 -> 4.871888786
B20: Interest on Operating | C20: ='Data (HIDE)'!$AB$16 -> 20.38 | D20: ='Data (HIDE)'!$AB$17 -> 22.94 | E20: ='Data (HIDE)'!$AB$18 -> 15.29 | F20: ='Data (HIDE)'!$AB$19 -> 11.37 | G20: ='Data (HIDE)'!$AB$20 -> 9.57 | H20: ='Data (HIDE)'!$AB$21 -> 12.21 | I20: ='Data (HIDE)'!$AB$22 -> 10.37
B21: Total Operating | C21: =SUM(C4:C20) -> 546.2185094 | D21: 615.0247343 | E21: 409.7523732 | F21: 304.7643715 | G21: 256.4161118 | H21: 327.4255216 | I21: 278.036802 | K21: =IF(SUM(K4:K20)=0,"",SUM(K4:K20)) -> 
A23: B. Fixed Costs
B24: Land Costs | C24: ='Fixed Cost Input'!$D$14 -> 97.17294514 | D24: ='Fixed Cost Input'!$D$14 -> 97.17294514 | E24: ='Fixed Cost Input'!$D$14 -> 97.17294514 | F24: ='Fixed Cost Input'!$D$14 -> 97.17294514 | G24: ='Fixed Cost Input'!$D$14 -> 97.17294514 | H24: ='Fixed Cost Input'!$D$14 -> 97.17294514 | I24: ='Fixed Cost Input'!$D$14 -> 97.17294514
B25: Machinery Costs | C25: ='Data (HIDE)'!$AE$16 -> 96.73101499 | D25: ='Data (HIDE)'!$AE$17 -> 96.73101499 | E25: ='Data (HIDE)'!$AE$18 -> 86.36697767 | F25: ='Data (HIDE)'!$AE$19 -> 86.36697767 | G25: ='Data (HIDE)'!$AE$20 -> 86.36697767 | H25: ='Data (HIDE)'!$AE$21 -> 86.36697767 | I25: ='Data (HIDE)'!$AE$22 -> 86.36697767
B26: Total Fixed | C26: =SUM(C24:C25) -> 193.9039601 | D26: 193.9039601 | E26: 183.5399228 | F26: 183.5399228 | G26: 183.5399228 | H26: 183.5399228 | I26: 183.5399228 | K26: =IF(SUM(K24:K25)=0,"",SUM(K24:K25)) -> 
B27: if delete it will affect crop rotation and fuel calcs | K27: =IF(OR(K21="",K26=""),"",K21+K26) -> 
A29: C. Owners - Labour & Living | C29: ='Data (HIDE)'!$AH$16 -> 26 | D29: ='Data (HIDE)'!$AH$17 -> 26 | E29: ='Data (HIDE)'!$AH$18 -> 26 | F29: ='Data (HIDE)'!$AH$19 -> 26 | G29: ='Data (HIDE)'!$AH$20 -> 26 | H29: ='Data (HIDE)'!$AH$21 -> 26 | I29: ='Data (HIDE)'!$AH$22 -> 26
A31: Total Costs | C31: =+C26+C29+C21 -> 766.1224695 | D31: =+D26+D29+D21 -> 834.9286944 | E31: 619.292296 | F31: 514.3042943 | G31: 465.9560346 | H31: 536.9654444 | I31: 487.5767248 | K31: =IF(OR(K21="",K26="",K29=""),"",SUM(K21+K26+K29)) -> 
C33: Profitability Analysis
A34: Estimated Farmgate
B35: Target Price $ per unit | C35: ='Data (HIDE)'!$E$16 -> 0.45 | D35: ='Data (HIDE)'!$E$17 -> 0.49 | E35: ='Data (HIDE)'!$E$18 -> 0.9 | F35: ='Data (HIDE)'!$E$19 -> 0.23 | G35: ='Data (HIDE)'!$E$20 -> 17.5 | H35: ='Data (HIDE)'!$E$21 -> 0.35 | I35: ='Data (HIDE)'!$E$22 -> 0.42 | Q35: ='Data (HIDE)'!$E$16 -> 0.45 | R35: ='Data (HIDE)'!$E$17 -> 0.49 | S35: ='Data (HIDE)'!$E$18 -> 0.9 | T35: ='Data (HIDE)'!$E$19 -> 0.23 | U35: ='Data (HIDE)'!$E$20 -> 17.5 | V35: ='Data (HIDE)'!$E$21 -> 0.35 | W35: ='Data (HIDE)'!$E$22 -> 0.42
B36: Premium $ per unit | C36: 0 | D36: 0 | E36: 0 | F36: 0 | G36: 0 | H36: 0 | I36: 0
B37: Target Yield per acre | C37: ='Data (HIDE)'!$C$16 -> 1700 | D37: ='Data (HIDE)'!$C$17 -> 1450 | E37: ='Data (HIDE)'!$C$18 -> 750 | F37: ='Data (HIDE)'!$C$19 -> 2300 | G37: ='Data (HIDE)'!$C$20 -> 16 | H37: ='Data (HIDE)'!$C$21 -> 1550 | I37: ='Data (HIDE)'!$C$22 -> 1125 | Q37: ='Data (HIDE)'!$C$16 -> 1700 | R37: ='Data (HIDE)'!$C$17 -> 1450 | S37: ='Data (HIDE)'!$C$18 -> 750 | T37: ='Data (HIDE)'!$C$19 -> 2300 | U37: ='Data (HIDE)'!$C$20 -> 16 | V37: ='Data (HIDE)'!$C$21 -> 1550 | W37: ='Data (HIDE)'!$C$22 -> 1125
B38: Unit type | C38: ='Data (HIDE)'!$D$16 -> lb | D38: ='Data (HIDE)'!$D$17 -> lb | E38: ='Data (HIDE)'!$D$18 -> lb | F38: ='Data (HIDE)'!$D$19 -> lb | G38: ='Data (HIDE)'!$D$20 -> bu | H38: ='Data (HIDE)'!$D$21 -> lb | I38: ='Data (HIDE)'!$D$22 -> lb
B39: Gross Revenue / acre | C39: =ROUND(((C35+C36)*C37),2) -> 765 | D39: 710.5 | E39: 675 | F39: 529 | G39: 280 | H39: 542.5 | I39: 472.5 | K39: =IF(OR(K35="",K37=""),"",ROUND(K35*K37,2)) -> 
B40: Revenue Ranking | C40: =RANK(C39,C39:I39) -> 1 | D40: =RANK(D39,C39:I39) -> 2 | E40: =RANK(E39,C39:I39) -> 3 | F40: =RANK(F39,C39:I39) -> 5 | G40: =RANK(G39,C39:I39) -> 7 | H40: =RANK(H39,C39:I39) -> 4 | I40: =RANK(I39,C39:I39) -> 6
B42: Operating Expense Ratio | C42: =SUM(C21/C39) -> 0.7140111233 | D42: 0.8656224268 | E42: 0.6070405528 | F42: 0.5761141238 | G42: 0.9157718279 | H42: 0.6035493485 | I42: 0.5884376762 | K42: =IF(OR(K21="",K39=""),"",K21/K39) -> 
A44: Marginal Returns
B45: Over Operating Costs | C45: =SUM(C39-C21) -> 218.7814906 | D45: 95.47526575 | E45: 265.2476268 | F45: 224.2356285 | G45: 23.58388819 | H45: 215.0744784 | I45: 194.463198 | K45: =IF(OR(K21="",K39=""),"",K39-K21) -> 
B46: Over Operating & Fixed | C46: =SUM(C39-C27) -> 765 | D46: 710.5 | E46: 675 | F46: 529 | G46: 280 | H46: 542.5 | I46: 472.5
B47: Over Total Costs (Net Profit) | C47: =SUM(C39-C31) -> -1.122469489 | D47: -124.4286944 | E47: 55.70770404 | F47: 14.69570573 | G47: -185.9560346 | H47: 5.534555608 | I47: -15.07672483 | K47: =IF(OR(K31="",K39=""),"",K39-K31) -> 
B48: Profitability Ranking | C48: =RANK(C47,C47:I47) -> 4 | D48: =RANK(D47,C47:I47) -> 6 | E48: =RANK(E47,C47:I47) -> 1 | F48: =RANK(F47,C47:I47) -> 2 | G48: =RANK(G47,C47:I47) -> 7 | H48: =RANK(H47,C47:I47) -> 3 | I48: =RANK(I47,C47:I47) -> 5
A50: Return on Investment (ROI) | C50: =SUM((C39-C31)/C31) -> -0.001465130621 | D50: -0.1490291269 | E50: 0.08995381406 | F50: 0.02857395105 | G50: -0.3990849368 | H50: 0.01030709828 | I50: -0.03092174844
A51: Return on Asset (ROA) | C51: ='Data (HIDE)'!$AS$16 -> 0.03599762339 | D51: ='Data (HIDE)'!$AS$17 -> 0.008112904964 | E51: ='Data (HIDE)'!$AS$18 -> 0.04731968043 | F51: ='Data (HIDE)'!$AS$19 -> 0.0380451444 | G51: ='Data (HIDE)'!$AS$20 -> -0.007330644915 | H51: ='Data (HIDE)'!$AS$21 -> 0.03597342343 | I51: ='Data (HIDE)'!$AS$22 -> 0.0313123469
C53: Breakeven Analysis
A54: Breakeven Price Per Unit
B55: Over Operating Costs | C55: =SUM(Summary!C21/Summary!C37) -> 0.3213050055 | D55: =SUM(Summary!D21/Summary!D37) -> 0.4241549891 | E55: =SUM(Summary!E21/Summary!E37) -> 0.5463364975 | F55: =SUM(Summary!F21/Summary!F37) -> 0.1325062485 | G55: =SUM(Summary!G21/Summary!G37) -> 16.02600699 | H55: =SUM(Summary!H21/Summary!H37) -> 0.211242272 | I55: =SUM(Summary!I21/Summary!I37) -> 0.247143824
B56: Over Land Costs | C56: =SUM(Summary!C24/Summary!C37) -> 0.05716055596 | D56: =SUM(Summary!D24/Summary!D37) -> 0.06701582423 | E56: =SUM(Summary!E24/Summary!E37) -> 0.1295639268 | F56: =SUM(Summary!F24/Summary!F37) -> 0.04224910658 | G56: =SUM(Summary!G24/Summary!G37) -> 6.073309071 | H56: =SUM(Summary!H24/Summary!H37) -> 0.06269222267 | I56: =SUM(Summary!I24/Summary!I37) -> 0.08637595123
B57: Over Machinery Costs | C57: =SUM(Summary!C25/Summary!C37) -> 0.05690059705 | D57: =SUM(Summary!D25/Summary!D37) -> 0.06671104482 | E57: =SUM(Summary!E25/Summary!E37) -> 0.1151559702 | F57: =SUM(Summary!F25/Summary!F37) -> 0.03755085986 | G57: =SUM(Summary!G25/Summary!G37) -> 5.397936104 | H57: =SUM(Summary!H25/Summary!H37) -> 0.05572063076 | I57: =SUM(Summary!I25/Summary!I37) -> 0.07677064682
B58: Over Owners Labour & Lliving | C58: =SUM(Summary!C29/Summary!C37) -> 0.01529411765 | D58: =SUM(Summary!D29/Summary!D37) -> 0.01793103448 | E58: =SUM(Summary!E29/Summary!E37) -> 0.03466666667 | F58: =SUM(Summary!F29/Summary!F37) -> 0.01130434783 | G58: =SUM(Summary!G29/Summary!G37) -> 1.625 | H58: =SUM(Summary!H29/Summary!H37) -> 0.01677419355 | I58: =SUM(Summary!I29/Summary!I37) -> 0.02311111111
B59: Over Total Costs | C59: =SUM(C55:C58) -> 0.4506602762 | D59: =SUM(D55:D58) -> 0.5758128927 | E59: 0.8257230613 | F59: 0.2236105627 | G59: 29.12225216 | H59: 0.346429319 | I59: 0.4334015332
A60: Breakeven Yield (Bu or lb.)
B61: Over Operating Costs | C61: =ROUND(Summary!C21/Summary!C35,1) -> 1213.8 | D61: =ROUND(Summary!D21/Summary!D35,1) -> 1255.2 | E61: =ROUND(Summary!E21/Summary!E35,1) -> 455.3 | F61: =ROUND(Summary!F21/Summary!F35,1) -> 1325.1 | G61: =ROUND(Summary!G21/Summary!G35,1) -> 14.7 | H61: =ROUND(Summary!H21/Summary!H35,1) -> 935.5 | I61: =ROUND(Summary!I21/Summary!I35,1) -> 662
B62: Over Land Costs | C62: =ROUND(Summary!C24/Summary!C35,1) -> 215.9 | D62: =ROUND(Summary!D24/Summary!D35,1) -> 198.3 | E62: =ROUND(Summary!E24/Summary!E35,1) -> 108 | F62: =ROUND(Summary!F24/Summary!F35,1) -> 422.5 | G62: =ROUND(Summary!G24/Summary!G35,1) -> 5.6 | H62: =ROUND(Summary!H24/Summary!H35,1) -> 277.6 | I62: =ROUND(Summary!I24/Summary!I35,1) -> 231.4
B63: Over Machinery Costs | C63: =ROUND(Summary!C25/Summary!C35,1) -> 215 | D63: =ROUND(Summary!D25/Summary!D35,1) -> 197.4 | E63: =ROUND(Summary!E25/Summary!E35,1) -> 96 | F63: =ROUND(Summary!F25/Summary!F35,1) -> 375.5 | G63: =ROUND(Summary!G25/Summary!G35,1) -> 4.9 | H63: =ROUND(Summary!H25/Summary!H35,1) -> 246.8 | I63: =ROUND(Summary!I25/Summary!I35,1) -> 205.6
B64: Over Owners Labour & Lliving | C64: =ROUND(Summary!C29/Summary!C35,1) -> 57.8 | D64: =ROUND(Summary!D29/Summary!D35,1) -> 53.1 | E64: =ROUND(Summary!E29/Summary!E35,1) -> 28.9 | F64: =ROUND(Summary!F29/Summary!F35,1) -> 113 | G64: =ROUND(Summary!G29/Summary!G35,1) -> 1.5 | H64: =ROUND(Summary!H29/Summary!H35,1) -> 74.3 | I64: =ROUND(Summary!I29/Summary!I35,1) -> 61.9
B65: Over Total Costs | C65: =SUM(C61:C64) -> 1702.5 | D65: =SUM(D61:D64) -> 1704 | E65: 688.2 | F65: 2236.1 | G65: 26.7 | H65: 1534.2 | I65: 1160.9
A66: Breakeven Yield Risk Ratio | C66: =SUM(Summary!C37/C65) -> 0.9985315712 | D66: =SUM(Summary!D37/D65) -> 0.8509389671 | E66: =SUM(Summary!E37/E65) -> 1.089799477 | F66: =SUM(Summary!F37/F65) -> 1.02857654 | G66: =SUM(Summary!G37/G65) -> 0.5992509363 | H66: =SUM(Summary!H37/H65) -> 1.010298527 | I66: =SUM(Summary!I37/I65) -> 0.9690757171
B67: (Target Yield per Acre / BE Yield)
B69: Note: This budget is only a guide and is not intended as an in depth study of the cost of production of this industry. Interpretation and utilization of this information is the responsibility of the user.

Sheet Risk Analysis
A1: =IF('Data (HIDE)'!B13="Manitoba","AgriInsurance Analysis","AgriInsurance Analysis - "&'Data (HIDE)'!B13) -> AgriInsurance Analysis
B3: ="*Based on "&'Data (HIDE)'!B45&"*" -> *Based on 2022 MASC data* | C3: ='Data (HIDE)'!$B$16 -> Black Bean | D3: ='Data (HIDE)'!$B$17 -> Kidney Bean | E3: ='Data (HIDE)'!$B$18 -> Hempseed | F3: ='Data (HIDE)'!$B$19 -> Fababean | G3: ='Data (HIDE)'!$B$20 -> Buckwheat | H3: ='Data (HIDE)'!$B$21 -> Canaryseed | I3: ='Data (HIDE)'!$B$22 -> Lentil | K3: Your Farm
A5: AgriInsurance
B6: ='Data (HIDE)'!B14 -> 80% Insured Value | C6: ='Data (HIDE)'!$AJ$16 -> 564.676 | D6: ='Data (HIDE)'!$AJ$17 -> 655.044 | E6: ='Data (HIDE)'!$AJ$18 -> 396.24 | F6: ='Data (HIDE)'!$AJ$19 -> 237.44 | G6: ='Data (HIDE)'!$AJ$20 -> 151.632 | H6: ='Data (HIDE)'!$AJ$21 -> 434.88 | I6: ='Data (HIDE)'!$AJ$22 -> 250.56
B7: Premium Cost (% of Insured) | C7: ='Data (HIDE)'!$AK$16 -> 0.07172254532 | D7: ='Data (HIDE)'!$AK$17 -> 0.08701705534 | E7: ='Data (HIDE)'!$AK$18 -> 0.09274682011 | F7: ='Data (HIDE)'!$AK$19 -> 0.1547759434 | G7: ='Data (HIDE)'!$AK$20 -> 0.1302495515 | H7: ='Data (HIDE)'!$AK$21 -> 0.07070916115 | I7: ='Data (HIDE)'!$AK$22 -> 0.08181673052
A9: Costs Not Covered By AgriInsurance
B10: Operating Costs | C10: =IF(Summary!C21-C6<0,0,SUM(Summary!C21-C6)) -> 0 | D10: =IF(Summary!D21-D6<0,0,SUM(Summary!D21-D6)) -> 0 | E10: =IF(Summary!E21-E6<0,0,SUM(Summary!E21-E6)) -> 13.51237315 | F10: =IF(Summary!F21-F6<0,0,SUM(Summary!F21-F6)) -> 67.32437146 | G10: =IF(Summary!G21-G6<0,0,SUM(Summary!G21-G6)) -> 104.7841118 | H10: =IF(Summary!H21-H6<0,0,SUM(Summary!H21-H6)) -> 0 | I10: =IF(Summary!I21-I6<0,0,SUM(Summary!I21-I6)) -> 27.47680202
B11: Operating & Fixed Costs | C11: =IF(Summary!C27-C6<0,0,SUM(Summary!C27-C6)) -> 0 | D11: =IF(Summary!D27-D6<0,0,SUM(Summary!D27-D6)) -> 0 | E11: =IF(Summary!E27-E6<0,0,SUM(Summary!E27-E6)) -> 0 | F11: =IF(Summary!F27-F6<0,0,SUM(Summary!F27-F6)) -> 0 | G11: =IF(Summary!G27-G6<0,0,SUM(Summary!G27-G6)) -> 0 | H11: =IF(Summary!H27-H6<0,0,SUM(Summary!H27-H6)) -> 0 | I11: =IF(Summary!I27-I6<0,0,SUM(Summary!I27-I6)) -> 0
B12: Total Costs | C12: =IF(Summary!C31-C6<0,0,SUM(Summary!C31-C6)) -> 201.4464695 | D12: =IF(Summary!D31-D6<0,0,SUM(Summary!D31-D6)) -> 179.8846944 | E12: =IF(Summary!E31-E6<0,0,SUM(Summary!E31-E6)) -> 223.052296 | F12: =IF(Summary!F31-F6<0,0,SUM(Summary!F31-F6)) -> 276.8642943 | G12: =IF(Summary!G31-G6<0,0,SUM(Summary!G31-G6)) -> 314.3240346 | H12: =IF(Summary!H31-H6<0,0,SUM(Summary!H31-H6)) -> 102.0854444 | I12: =IF(Summary!I31-I6<0,0,SUM(Summary!I31-I6)) -> 237.0167248
A14: AgriInsurance Risk Ratio | C14: (AgriInsurance Coverage / Cost)
B15: Operating Costs | C15: =SUM(C6/Summary!C21) -> 1.033791405 | D15: =SUM(D6/Summary!D21) -> 1.06506936 | E15: =SUM(E6/Summary!E21) -> 0.9670230753 | F15: =SUM(F6/Summary!F21) -> 0.7790936941 | G15: =SUM(G6/Summary!G21) -> 0.5913512959 | H15: =SUM(H6/Summary!H21) -> 1.328179911 | I15: =SUM(I6/Summary!I21) -> 0.9011756652
B16: Total Costs | C16: =SUM(C6/Summary!C31) -> 0.7370570927 | D16: =SUM(D6/Summary!D31) -> 0.7845508298 | E16: =SUM(E6/Summary!E31) -> 0.63982711 | F16: =SUM(F6/Summary!F31) -> 0.4616722097 | G16: =SUM(G6/Summary!G31) -> 0.3254212602 | H16: =SUM(H6/Summary!H31) -> 0.8098845178 | I16: =SUM(I6/Summary!I31) -> 0.5138883528
B18: Risk Ranking | C18: =RANK(C15,$C15:$I15,1) -> 5 | D18: 6 | E18: 4 | F18: 2 | G18: 1 | H18: 7 | I18: 3
B19: (Lower number indicates increasing risk)
A21: =IF('Data (HIDE)'!B13="Manitoba","Risk & Sensitivity Analysis (Stress Test)","Sensitivity Analysis (Stress Test) - "&'Data (HIDE)'!B13) -> Risk & Sensitivity Analysis (Stress Test)
A24: =#REF! ->  | C24: =Summary!C21 -> 546.2185094 | D24: =Summary!D21 -> 615.0247343 | E24: =Summary!E21 -> 409.7523732 | F24: =Summary!F21 -> 304.7643715 | G24: =Summary!G21 -> 256.4161118 | H24: =Summary!H21 -> 327.4255216 | I24: =Summary!I21 -> 278.036802
A25: =#REF! ->  | C25: =Summary!C26 -> 193.9039601 | D25: =Summary!D26 -> 193.9039601 | E25: =Summary!E26 -> 183.5399228 | F25: =Summary!F26 -> 183.5399228 | G25: =Summary!G26 -> 183.5399228 | H25: =Summary!H26 -> 183.5399228 | I25: =Summary!I26 -> 183.5399228
A26: =#REF! ->  | C26: =Summary!C31 -> 766.1224695 | D26: =Summary!D31 -> 834.9286944 | E26: =Summary!E31 -> 619.292296 | F26: =Summary!F31 -> 514.3042943 | G26: =Summary!G31 -> 465.9560346 | H26: =Summary!H31 -> 536.9654444 | I26: =Summary!I31 -> 487.5767248
A28: Estimated Farmgate
B29: Price $ per unit | C29: =Summary!C35 -> 0.45 | D29: =Summary!D35 -> 0.49 | E29: =Summary!E35 -> 0.9 | F29: =Summary!F35 -> 0.23 | G29: =Summary!G35 -> 17.5 | H29: =Summary!H35 -> 0.35 | I29: =Summary!I35 -> 0.42
B30: Yield per acre (bu or lb.) | C30: =Summary!C37 -> 1700 | D30: =Summary!D37 -> 1450 | E30: =Summary!E37 -> 750 | F30: =Summary!F37 -> 2300 | G30: =Summary!G37 -> 16 | H30: =Summary!H37 -> 1550 | I30: =Summary!I37 -> 1125
B31: Unit type | C31: =Summary!C38 -> lb | D31: =Summary!D38 -> lb | E31: =Summary!E38 -> lb | F31: =Summary!F38 -> lb | G31: =Summary!G38 -> bu | H31: =Summary!H38 -> lb | I31: =Summary!I38 -> lb
D33: Percent Market Price Change | E33: -0.2
D34: Percent Crop Yield Change | E34: -0.1
C37: ='Data (HIDE)'!$B$16 -> Black Bean | D37: ='Data (HIDE)'!$B$17 -> Kidney Bean | E37: ='Data (HIDE)'!$B$18 -> Hempseed | F37: ='Data (HIDE)'!$B$19 -> Fababean | G37: ='Data (HIDE)'!$B$20 -> Buckwheat | H37: ='Data (HIDE)'!$B$21 -> Canaryseed | I37: ='Data (HIDE)'!$B$22 -> Lentil | K37: Your Farm
B39: Market Price ($ per unit) | C39: =SUM(C29*(1+$E$33)) -> 0.36 | D39: 0.392 | E39: 0.72 | F39: 0.184 | G39: 14 | H39: 0.28 | I39: 0.336
B40: Yield (per acre) | C40: =ROUND(C30*(1+$E$34),0) -> 1530 | D40: 1305 | E40: 675 | F40: 2070 | G40: 14 | H40: 1395 | I40: 1013
A42: ="Stress Test Scenario = Market Price "&IF(E33<0,"Down","Up")&" "&ABS(E33*100)&"%, and Crop Yield "&IF(E34<0,"Down","Up")&" "&ABS(E34*100)&"%" -> Stress Test Scenario = Market Price Down 20%, and Crop Yield Down 10%
B43: Gross Revenue / acre | C43: =C39*C40 -> 550.8 | D43: 511.56 | E43: 486 | F43: 380.88 | G43: 196 | H43: 390.6 | I43: 340.368
B44: Marginal Returns
B45: Over Operating Costs | C45: =SUM(C43-C24) -> 4.581490639 | D45: -103.4647343 | E45: 76.24762685 | F45: 76.11562854 | G45: -60.41611181 | H45: 63.17447842 | I45: 62.33119798
B46: Over Operating & Fixed | C46: =SUM(C43-(C24+C25)) -> -189.3224695 | D46: -297.3686944 | E46: -107.292296 | F46: -107.4242943 | G46: -243.9560346 | H46: -120.3654444 | I46: -121.2087248
B47: Over Total Costs (Net Profit) | C47: =SUM(C43-C26) -> -215.3224695 | D47: -323.3686944 | E47: -133.292296 | F47: -133.4242943 | G47: -269.9560346 | H47: -146.3654444 | I47: -147.2087248
B48: Profitability Ranking | C48: =RANK(C47,C47:I47) -> 5 | D48: =RANK(D47,C47:I47) -> 7 | E48: =RANK(E47,C47:I47) -> 1 | F48: =RANK(F47,C47:I47) -> 2 | G48: =RANK(G47,C47:I47) -> 6 | H48: =RANK(H47,C47:I47) -> 3 | I48: =RANK(I47,C47:I47) -> 4
B50: Operating Expense Ratio | C50: =SUM(C24/C43) -> 0.9916821158 | D50: 1.202253371 | E50: 0.8431118789 | F50: 0.8001585052 | G50: 1.308245468 | H50: 0.8382629841 | I50: 0.8168711572
A52: Acreage Analysis
C54: ='Data (HIDE)'!$B$16 -> Black Bean | D54: ='Data (HIDE)'!$B$17 -> Kidney Bean | E54: ='Data (HIDE)'!$B$18 -> Hempseed | F54: ='Data (HIDE)'!$B$19 -> Fababean | G54: ='Data (HIDE)'!$B$20 -> Buckwheat | H54: ='Data (HIDE)'!$B$21 -> Canaryseed | I54: ='Data (HIDE)'!$B$22 -> Lentil | K54: Your Farm
A56: MASC Seeded Acreage
B57: 5 Year Average Acres | C57: ='Data (HIDE)'!$H$16 -> 24951.4 | D57: ='Data (HIDE)'!$H$17 -> 9803 | E57: ='Data (HIDE)'!$H$18 -> 8635.6 | F57: ='Data (HIDE)'!$H$19 -> 5152.6 | G57: ='Data (HIDE)'!$H$20 -> 4909 | H57: ='Data (HIDE)'!$H$21 -> 4369.2 | I57: ='Data (HIDE)'!$H$22 -> 1564.2
B58: Acre Ranking | C58: =RANK(C57,C57:I57) -> 1 | D58: =RANK(D57,C57:I57) -> 2 | E58: =RANK(E57,C57:I57) -> 3 | F58: =RANK(F57,C57:I57) -> 4 | G58: =RANK(G57,C57:I57) -> 5 | H58: =RANK(H57,C57:I57) -> 6 | I58: =RANK(I57,C57:I57) -> 7
B60: ='Data (HIDE)'!J15 -> 2022 Acres | C60: ='Data (HIDE)'!$J$16 -> 21053 | D60: ='Data (HIDE)'!$J$17 -> 4300 | E60: ='Data (HIDE)'!$J$18 -> 5604 | F60: ='Data (HIDE)'!$J$19 -> 0 | G60: ='Data (HIDE)'!$J$20 -> 2834 | H60: ='Data (HIDE)'!$J$21 -> 4990 | I60: ='Data (HIDE)'!$J$22 -> 1003
B61: Acre Ranking | C61: =RANK(C60,C60:I60) -> 1 | D61: =RANK(D60,C60:I60) -> 4 | E61: =RANK(E60,C60:I60) -> 2 | F61: =RANK(F60,C60:I60) -> 7 | G61: =RANK(G60,C60:I60) -> 5 | H61: =RANK(H60,C60:I60) -> 3 | I61: =RANK(I60,C60:I60) -> 6
B64: Note: This budget is only a guide and is not intended as an in depth study of the cost of production of this industry. Interpretation and utilization of this information is the responsibility of the user.

Sheet Charts

Sheet Seed, Fertilizer & Chemical
A1: Seed & Treatment
D2: Seeding Rate | G2: Price | J2: Cost
A3: Crop | D3: per Acre | G3: per Unit | J3: per Acre
B4: Hempseed | D4: 25 | E4: lb | G4: 2.35 | H4: /lb | J4: =ROUND(D4*G4,2) -> 58.75
B5: Black Bean | D5: 1.25 | E5: unit | G5: 92 | H5: /unit | J5: 115
B6: Kidney Bean | D6: 0.75 | E6: unit | G6: 222 | H6: /unit | J6: 166.5
B7: Buckwheat | D7: 1 | E7: bu | G7: 25 | H7: /bu | J7: 25
B8: Canaryseed | D8: 44 | E8: lb | G8: 0.75 | H8: /lb | J8: 33
B9: Fababean | D9: 180 | E9: lb | G9: 0.3 | H9: /lb | J9: 54
B10: Lentil | D10: 2 | E10: bu | G10: 35 | H10: /bu | J10: 70
A12: Fertilizer
D13: Bulk Price | G13: Actual Nutrient | J13: Nitrogen | M13: Sulphur
A14: Fertilizer Type | D14: $/tonne | G14: $/lb | J14: Usage | M14: Usage
B15: Nitrogen: (urea) 46-0-0 | D15: 1100 | G15: =SUM(D15/(2204.5855*0.46)) -> 1.084695671 | J15: 0.75 | M15: -
B16: Nitrogen: (NH3) 82-0-0 | D16: 1900 | G16: =SUM(D16/(2204.5855*0.82)) -> 1.051024408 | J16: 0.25 | M16: -
B17: Nitrogen: (liquid) 28-0-0 | D17: 700 | G17: =SUM(D17/(2204.5855*0.28)) -> 1.13400002 | J17: 0 | M17: -
B18: Phosphorus: 11-52-0 | D18: 1300 | G18: =SUM((D18-(G15*(0.11*2204.5855)))/(2204.5855*0.52)) -> 0.9045451661 | J18: - | M18: -
B19: Potash: 0-0-60 | D19: 1000 | G19: =SUM(D19/(2204.5855*0.6)) -> 0.756000013 | J19: - | M19: -
B20: Sulphur: 20.5-0-0-24 | D20: 700 | G20: =SUM((D20-(G15*(0.205*2204.5855)))/(2204.5855*0.24)) -> 0.3964891373 | J20: - | M20: 1
B21: MES S15: 13-33-0-15 | D21: 1000 | G21: =SUM((D21-(G15*(0.13*2204.5855))-(G18*(0.33*2204.5855)))/(2204.5855*0.15)) -> 0.09393110529 | H21: 0 | J21: - | M21: 0
S22: ***HIDE***
C23: Amount of Actual Pounds of Elements Applied Per Acre | T23: 82-0-0 | X23: 28-0-0 | AD23: 46-0-0 | AH23: 11-52-0 | AK23: 0-0-60 | AN23: 20.5-0-0-24 | AQ23: 13-33-0-15
C24: Nitrogen | F24: Phosphorus | I24: Potash | L24: Sulphur | O24: Total | S24: preseed | T24: preseed | U24: preseed | V24: preseed | W24: suppl | X24: suppl | Y24: suppl | Z24: suppl | AA24: blend | AB24: blend | AC24: blend | AD24: blend | AE24: blend | AF24: blend | AG24: blend | AH24: blend | AI24: blend | AJ24: blend | AK24: blend | AL24: blend | AM24: blend | AN24: blend | AO24: blend | AP24: blend | AQ24: blend | AR24: blend | AS24: blend | AT24: N phos
A25: Crop | C25: lbs | D25: $/acre | F25: lbs | G25: $/acre | I25: lbs | J25: $/acre | L25: lbs | M25: $/acre | O25: $/acre | S25: N actual | T25: N lbs | U25: N MT | V25: N cost | W25: N actual | X25: N lbs | Y25: N MT | Z25: N cost | AA25: N phos | AB25: N sul1 | AC25: N sul2 | AD25: N urea | AE25: N lbs | AF25: N MT | AG25: N cost | AH25: phos lbs | AI25: phos MT | AJ25: phos cost | AK25: potash | AL25: pot MT | AM25: pot cost | AN25: sul 1 lbs | AO25: sul 1 MT | AP25: sul 1 cost | AQ25: sul 2 lbs | AR25: sul 2 MT | AS25: sul 2 cost | AT25: lbs
B26: ='Seed, Fertilizer & Chemical'!B4 -> Hempseed | C26: 80 | D26: =IF(SUM($J$15:$J$17)<>100%,"ERROR",SUM(V26+Z26+AG26)) -> 79.21806178 | F26: 30 | G26: =AJ26 -> 34.01977683 | I26: 0 | J26: =AM26 -> 0 | L26: 0 | M26: =IF(SUM($M$20:$M$21)<>100%,"ERROR",AP26+AS26) -> 0 | O26: =D26+G26+J26+M26 -> 113.2378386 | S26: =SUM(C26*$J$16) -> 20 | T26: =MAXA(0,(S26)/(0.82)) -> 24.3902439 | U26: =(T26)/2204.6 -> 0.01106334206 | V26: =SUM(U26*$D$16) -> 21.02034991 | W26: =SUM(C26*$J$17) -> 0 | X26: =MAXA(0,(W26)/(0.28)) -> 0 | Y26: =(X26)/2204.6 -> 0 | Z26: =SUM(Y26*$D$17) -> 0 | AA26: =SUM(AH26*0.11) -> 6.346153846 | AB26: =SUM(AN26*0.205) -> 0 | AC26: =SUM(AQ26*0.13) -> 0 | AD26: =SUM(C26-(AA26+AB26+AC26+W26+S26)) -> 53.65384615 | AE26: =MAXA(0,(AD26)/(0.46)) -> 116.638796 | AF26: =(AE26)/2204.6 -> 0.05290701079 | AG26: =SUM(AF26*$D$15) -> 58.19771187 | AH26: =MAXA(0,(F26-(AQ26*0.33))/0.52) -> 57.69230769 | AI26: =(AH26)/2204.6 -> 0.0261690591 | AJ26: =SUM(AI26*$D$18) -> 34.01977683 | AK26: =SUM(I26/0.6) -> 0 | AL26: =(AK26)/2204.6 -> 0 | AM26: =SUM(AL26*$D$19) -> 0 | AN26: =MAXA(0,SUM(L26*$M$20)/0.24) -> 0 | AO26: =(AN26)/2204.6 -> 0 | AP26: =SUM(AO26*$D$20) -> 0 | AQ26: =MAXA(0,SUM(L26*$M$21)/0.15) -> 0 | AR26: =(AQ26)/2204.6 -> 0 | AS26: =SUM(AR26*$D$21) -> 0
B27: ='Seed, Fertilizer & Chemical'!B5 -> Black Bean | C27: 80 | D27: =IF(SUM($J$15:$J$17)<>100%,"ERROR",SUM(V27+Z27+AG27)) -> 79.21806178 | F27: 30 | G27: =AJ27 -> 34.01977683 | I27: 0 | J27: =AM27 -> 0 | L27: 0 | M27: =IF(SUM($M$20:$M$21)<>100%,"ERROR",AP27+AS27) -> 0 | O27: 113.2378386 | S27: =SUM(C27*$J$16) -> 20 | T27: =MAXA(0,(S27)/(0.82)) -> 24.3902439 | U27: =(T27)/2204.6 -> 0.01106334206 | V27: =SUM(U27*$D$16) -> 21.02034991 | W27: =SUM(C27*$J$17) -> 0 | X27: =MAXA(0,(W27)/(0.28)) -> 0 | Y27: =(X27)/2204.6 -> 0 | Z27: =SUM(Y27*$D$17) -> 0 | AA27: =SUM(AH27*0.11) -> 6.346153846 | AB27: =SUM(AN27*0.205) -> 0 | AC27: =SUM(AQ27*0.13) -> 0 | AD27: =SUM(C27-(AA27+AB27+AC27+W27+S27)) -> 53.65384615 | AE27: =MAXA(0,(AD27)/(0.46)) -> 116.638796 | AF27: =(AE27)/2204.6 -> 0.05290701079 | AG27: =SUM(AF27*$D$15) -> 58.19771187 | AH27: =MAXA(0,(F27-(AQ27*0.33))/0.52) -> 57.69230769 | AI27: =(AH27)/2204.6 -> 0.0261690591 | AJ27: =SUM(AI27*$D$18) -> 34.01977683 | AK27: =SUM(I27/0.6) -> 0 | AL27: =(AK27)/2204.6 -> 0 | AM27: =SUM(AL27*$D$19) -> 0 | AN27: =MAXA(0,SUM(L27*$M$20)/0.24) -> 0 | AO27: =(AN27)/2204.6 -> 0 | AP27: =SUM(AO27*$D$20) -> 0 | AQ27: =MAXA(0,SUM(L27*$M$21)/0.15) -> 0 | AR27: =(AQ27)/2204.6 -> 0 | AS27: =SUM(AR27*$D$21) -> 0
B28: ='Seed, Fertilizer & Chemical'!B6 -> Kidney Bean | C28: 80 | D28: 79.21806178 | F28: 30 | G28: 34.01977683 | I28: 0 | J28: 0 | L28: 0 | M28: 0 | O28: 113.2378386 | S28: 20 | T28: 24.3902439 | U28: 0.01106334206 | V28: 21.02034991 | W28: 0 | X28: 0 | Y28: 0 | Z28: 0 | AA28: 6.346153846 | AB28: 0 | AC28: 0 | AD28: 53.65384615 | AE28: 116.638796 | AF28: 0.05290701079 | AG28: 58.19771187 | AH28: 57.69230769 | AI28: 0.0261690591 | AJ28: 34.01977683 | AK28: 0 | AL28: 0 | AM28: 0 | AN28: 0 | AO28: 0 | AP28: 0 | AQ28: 0 | AR28: 0 | AS28: 0
B29: ='Seed, Fertilizer & Chemical'!B7 -> Buckwheat | C29: 40 | D29: 38.46176417 | F29: 20 | G29: 22.67985122 | I29: 0 | J29: 0 | L29: 0 | M29: 0 | O29: 61.14161539 | S29: 10 | T29: 12.19512195 | U29: 0.005531671029 | V29: 10.51017496 | W29: 0 | X29: 0 | Y29: 0 | Z29: 0 | AA29: 4.230769231 | AB29: 0 | AC29: 0 | AD29: 25.76923077 | AE29: 56.02006689 | AF29: 0.02541053565 | AG29: 27.95158921 | AH29: 38.46153846 | AI29: 0.0174460394 | AJ29: 22.67985122 | AK29: 0 | AL29: 0 | AM29: 0 | AN29: 0 | AO29: 0 | AP29: 0 | AQ29: 0 | AR29: 0 | AS29: 0
B30: ='Seed, Fertilizer & Chemical'!B8 -> Canaryseed | C30: 70 | D30: 69.60262074 | F30: 25 | G30: 28.34981403 | I30: 0 | J30: 0 | L30: 0 | M30: 0 | O30: 97.95243476 | S30: 17.5 | T30: 21.34146341 | U30: 0.009680424301 | V30: 18.39280617 | W30: 0 | X30: 0 | Y30: 0 | Z30: 0 | AA30: 5.288461538 | AB30: 0 | AC30: 0 | AD30: 47.21153846 | AE30: 102.6337793 | AF30: 0.04655437688 | AG30: 51.20981457 | AH30: 48.07692308 | AI30: 0.02180754925 | AJ30: 28.34981403 | AK30: 0 | AL30: 0 | AM30: 0 | AN30: 0 | AO30: 0 | AP30: 0 | AQ30: 0 | AR30: 0 | AS30: 0
B31: ='Seed, Fertilizer & Chemical'!B9 -> Fababean | C31: 0 | D31: 0 | F31: 25 | G31: 28.34981403 | I31: 0 | J31: 0 | L31: 20 | M31: 26.45982642 | O31: 54.80964045 | S31: 0 | T31: 0 | U31: 0 | V31: 0 | W31: 0 | X31: 0 | Y31: 0 | Z31: 0 | AA31: 5.288461538 | AB31: 17.08333333 | AC31: 0 | AD31: -22.37179487 | AE31: 0 | AF31: 0 | AG31: 0 | AH31: 48.07692308 | AI31: 0.02180754925 | AJ31: 28.34981403 | AK31: 0 | AL31: 0 | AM31: 0 | AN31: 83.33333333 | AO31: 0.03779975203 | AP31: 26.45982642 | AQ31: 0 | AR31: 0 | AS31: 0
B32: ='Seed, Fertilizer & Chemical'!B10 -> Lentil | C32: 0 | D32: 0 | F32: 25 | G32: 28.34981403 | I32: 0 | J32: 0 | L32: 0 | M32: 0 | O32: 28.34981403 | S32: 0 | T32: 0 | U32: 0 | V32: 0 | W32: 0 | X32: 0 | Y32: 0 | Z32: 0 | AA32: 5.288461538 | AB32: 0 | AC32: 0 | AD32: -5.288461538 | AE32: 0 | AF32: 0 | AG32: 0 | AH32: 48.07692308 | AI32: 0.02180754925 | AJ32: 28.34981403 | AK32: 0 | AL32: 0 | AM32: 0 | AN32: 0 | AO32: 0 | AP32: 0 | AQ32: 0 | AR32: 0 | AS32: 0
A34: * | B34: The fertilizer recommendation will vary depending on the soil type, climate and crop rotation. MB Ag. recommends that soil test sampling and analysis be conducted each year to produce a better baseline for fertility. It costs $1.00 to $2.00/acre for custom sampling and analysis.
A36: * | B36: For more information on fertilizer rates and recommendations -
A37: * | B37: Note: phosphorus amounts are allotted to each crop in the above examples. Sometimes this amount may not be practical or safe to apply with the seed of some crops like soybean or canola. Options for meeting these needs and phosphorus balance through the rotation are provided at:
A41: Crop Protection
D42: Weed | F42: Disease | G42: Insect | J42: Total
D43: Control | F43: Control | G43: Control | J43: Cost
A44: Crop | D44: $/acre | F44: $/acre | G44: $/acre | J44: $/acre
B45: ='Seed, Fertilizer & Chemical'!B4 -> Hempseed | D45: 52.13 | F45: 0 | G45: 0 | J45: =D45+F45+G45 -> 52.13
B46: ='Seed, Fertilizer & Chemical'!B5 -> Black Bean | D46: 84.02 | F46: 40.5 | G46: 0 | J46: 124.52
B47: ='Seed, Fertilizer & Chemical'!B6 -> Kidney Bean | D47: 84.02 | F47: 40.5 | G47: 0 | J47: 124.52
B48: ='Seed, Fertilizer & Chemical'!B7 -> Buckwheat | D48: 6.5 | F48: 0 | G48: 0 | J48: 6.5
B49: ='Seed, Fertilizer & Chemical'!B8 -> Canaryseed | D49: 14.42 | F49: 16.25 | G49: 0 | J49: 30.67
B50: ='Seed, Fertilizer & Chemical'!B9 -> Fababean | D50: 15.5 | F50: 0 | G50: 0 | J50: 15.5
B51: ='Seed, Fertilizer & Chemical'!B10 -> Lentil | D51: 16 | F51: 14.35 | G51: 0 | J51: 30.35
B53: Note:
B54: Pre-emergent burn off and/or pre-harvest desiccation not included in weed control costs.
B55: Chemical costs do not include year end rebates or bundling discounts.
B56: Disease Control costs do not include custom application costs.

Sheet Op. Cost Input
A1: Operating Costs
B3: Interest Rate on Operating | D3: 0.0775 | G3: Grain Hauling | R3: # Hired | S3: # of | T3: Acres | U3: Hours
B4: Land Taxes ($/acre) | D4: 17.5 | G4: Distance to storage | I4: 6 | J4: miles roundtrip | R4: Staff | S4: Months | T4: Farmed | U4: Per Acre
B5: Labour rate ($/hour) | D5: 26 | G5: Distance to market | I5: 45 | J5: miles roundtrip | R5: 1 | S5: 12 | T5: ='Fixed Cost Input'!D5+'Fixed Cost Input'!D6 -> 2500 | U5: =SUM(R5*S5*4*40)/T5 -> 0.768
B6: Machinery Operating ($/acre) | D6: 25 | G6: Grain truck fuel use | I6: 5 | J6: Miles per Imp. Gallon | R6: 1 | S6: 4 | T6: =T5 -> 2500 | U6: =SUM(R6*S6*4*40)/T6 -> 0.256
B7: Other Costs ($/acre) | D7: 17.75 | G7: Grain truck size | I7: 475 | J7: bushels | R7: 0 | S7: 0 | T7: =T5 -> 2500 | U7: =SUM(R7*S7*4*40)/T7 -> 0
B8: Fuel Cost ($/litre) | D8: 1.65 | R8: 0 | S8: 0 | T8: =T5 -> 2500 | U8: =SUM(R8*S8*4*40)/T8 -> 0
B9: Owners - Labour & Living (hrs/acre) | D9: 1 | T9: Total | U9: =SUM(U5:U8) -> 1.024
E10: Operating Cost ($/Acre)
C11: Labour | E11: Crop* | F11: Hail | G11: Drying | H11: Storage | I11: Rental and Custom Costs
A12: Crop | C12: (hrs/acre) | D12: Fuel | E12: Insurance | F12: Insurance | G12: Costs | H12: $/acre** | I12: Seeding | J12: Application | K12: Swathing | L12: Harvest | M12: General | N12: Total
B13: ='Seed, Fertilizer & Chemical'!B4 -> Hempseed | C13: 0.2 | D13: =SUM($D$8*D28) -> 38.71554474 | E13: =MROUND(HLOOKUP('Data (HIDE)'!$V$14,'Data (HIDE)'!$C$68:$G$75,2,FALSE)+'Data (HIDE)'!$D$77,0.25) -> 36.75 | F13: =HLOOKUP('Data (HIDE)'!$W$14,'Data (HIDE)'!$D$82:$H$90,3,FALSE) -> 25 | G13: - | H13: =-PMT('Fixed Cost Input'!$C$11,20,(HLOOKUP('Data (HIDE)'!$B$13,'Data (HIDE)'!$C$46:$G$53,2,FALSE)/44*(('Fixed Cost Input'!$C$17*'Fixed Cost Input'!$D$17)+('Fixed Cost Input'!$C$18*'Fixed Cost Input'!$D$18)+('Fixed Cost Input'!$C$19*'Fixed Cost Input'!$D$19))*'Fixed Cost Input'!$D$20),0) -> 4.428989806 | I13: - | J13: - | K13: - | L13: - | M13: - | N13: =SUM(I13:M13) -> 0 | AB13: =MROUND(HLOOKUP('Data (HIDE)'!$V$14,'Data (HIDE)'!$C$68:$G$75,2,FALSE)+'Data (HIDE)'!$D$77,0.25) -> 36.75 | AC13: =HLOOKUP('Data (HIDE)'!$W$14,'Data (HIDE)'!$D$82:$H$90,3,FALSE) -> 25
B14: ='Seed, Fertilizer & Chemical'!B5 -> Black Bean | C14: 0.2 | D14: 37.89370547 | E14: =MROUND(HLOOKUP('Data (HIDE)'!$V$14,'Data (HIDE)'!$C$68:$G$75,3,FALSE)+'Data (HIDE)'!$D$77,0.25) -> 40.5 | F14: =HLOOKUP('Data (HIDE)'!$W$14,'Data (HIDE)'!$D$82:$H$90,4,FALSE) -> 21.875 | G14: - | H14: =-PMT('Fixed Cost Input'!$C$11,20,(HLOOKUP('Data (HIDE)'!$B$13,'Data (HIDE)'!$C$46:$G$53,3,FALSE)/60*(('Fixed Cost Input'!$C$17*'Fixed Cost Input'!$D$17)+('Fixed Cost Input'!$C$18*'Fixed Cost Input'!$D$18)+('Fixed Cost Input'!$C$19*'Fixed Cost Input'!$D$19))*'Fixed Cost Input'!$D$20),0) -> 7.361965277 | I14: - | J14: - | K14: - | L14: - | M14: - | N14: =SUM(I14:M14) -> 0 | AB14: =MROUND(HLOOKUP('Data (HIDE)'!$V$14,'Data (HIDE)'!$C$68:$G$75,3,FALSE)+'Data (HIDE)'!$D$77,0.25) -> 40.5 | AC14: =HLOOKUP('Data (HIDE)'!$W$14,'Data (HIDE)'!$D$82:$H$90,4,FALSE) -> 21.875
B15: ='Seed, Fertilizer & Chemical'!B6 -> Kidney Bean | C15: 0.2 | D15: 37.22257232 | E15: =MROUND(HLOOKUP('Data (HIDE)'!$V$14,'Data (HIDE)'!$C$68:$G$75,4,FALSE)+'Data (HIDE)'!$D$77,0.25) -> 57 | F15: =HLOOKUP('Data (HIDE)'!$W$14,'Data (HIDE)'!$D$82:$H$90,5,FALSE) -> 21.875 | G15: - | H15: =-PMT('Fixed Cost Input'!$C$11,20,(HLOOKUP('Data (HIDE)'!$B$13,'Data (HIDE)'!$C$46:$G$53,4,FALSE)/60*(('Fixed Cost Input'!$C$17*'Fixed Cost Input'!$D$17)+('Fixed Cost Input'!$C$18*'Fixed Cost Input'!$D$18)+('Fixed Cost Input'!$C$19*'Fixed Cost Input'!$D$19))*'Fixed Cost Input'!$D$20),0) -> 6.279323324 | I15: - | J15: - | K15: - | L15: - | M15: - | N15: 0 | AB15: =MROUND(HLOOKUP('Data (HIDE)'!$V$14,'Data (HIDE)'!$C$68:$G$75,4,FALSE)+'Data (HIDE)'!$D$77,0.25) -> 57 | AC15: =HLOOKUP('Data (HIDE)'!$W$14,'Data (HIDE)'!$D$82:$H$90,5,FALSE) -> 21.875
B16: ='Seed, Fertilizer & Chemical'!B7 -> Buckwheat | C16: 0.2 | D16: 33.59715133 | E16: =MROUND(HLOOKUP('Data (HIDE)'!$V$14,'Data (HIDE)'!$C$68:$G$75,5,FALSE)+'Data (HIDE)'!$D$77,0.25) -> 19.75 | F16: =HLOOKUP('Data (HIDE)'!$W$14,'Data (HIDE)'!$D$82:$H$90,6,FALSE) -> 31.25 | G16: - | H16: =-PMT('Fixed Cost Input'!$C$11,20,(HLOOKUP('Data (HIDE)'!$B$13,'Data (HIDE)'!$C$46:$G$53,5,FALSE)*(('Fixed Cost Input'!$C$17*'Fixed Cost Input'!$D$17)+('Fixed Cost Input'!$C$18*'Fixed Cost Input'!$D$18)+('Fixed Cost Input'!$C$19*'Fixed Cost Input'!$D$19))*'Fixed Cost Input'!$D$20),0) -> 4.157345098 | I16: - | J16: - | K16: - | L16: - | M16: - | N16: 0 | AB16: =MROUND(HLOOKUP('Data (HIDE)'!$V$14,'Data (HIDE)'!$C$68:$G$75,5,FALSE)+'Data (HIDE)'!$D$77,0.25) -> 19.75 | AC16: =HLOOKUP('Data (HIDE)'!$W$14,'Data (HIDE)'!$D$82:$H$90,6,FALSE) -> 31.25
B17: ='Seed, Fertilizer & Chemical'!B8 -> Canaryseed | C17: 0.2 | D17: 36.83823069 | E17: =MROUND(HLOOKUP('Data (HIDE)'!$V$14,'Data (HIDE)'!$C$68:$G$75,6,FALSE)+'Data (HIDE)'!$D$77,0.25) -> 30.75 | F17: =HLOOKUP('Data (HIDE)'!$W$14,'Data (HIDE)'!$D$82:$H$90,7,FALSE) -> 12.5 | G17: - | H17: =-PMT('Fixed Cost Input'!$C$11,20,(HLOOKUP('Data (HIDE)'!$B$13,'Data (HIDE)'!$C$46:$G$53,6,FALSE)/50*(('Fixed Cost Input'!$C$17*'Fixed Cost Input'!$D$17)+('Fixed Cost Input'!$C$18*'Fixed Cost Input'!$D$18)+('Fixed Cost Input'!$C$19*'Fixed Cost Input'!$D$19))*'Fixed Cost Input'!$D$20),0) -> 8.054856126 | I17: - | J17: - | K17: - | L17: - | M17: - | N17: 0 | AB17: =MROUND(HLOOKUP('Data (HIDE)'!$V$14,'Data (HIDE)'!$C$68:$G$75,6,FALSE)+'Data (HIDE)'!$D$77,0.25) -> 30.75 | AC17: =HLOOKUP('Data (HIDE)'!$W$14,'Data (HIDE)'!$D$82:$H$90,7,FALSE) -> 12.5
B18: ='Seed, Fertilizer & Chemical'!B9 -> Fababean | C18: 0.2 | D18: 35.04942505 | E18: =MROUND(HLOOKUP('Data (HIDE)'!$V$14,'Data (HIDE)'!$C$68:$G$75,7,FALSE)+'Data (HIDE)'!$D$77,0.25) -> 36.75 | F18: =HLOOKUP('Data (HIDE)'!$W$14,'Data (HIDE)'!$D$82:$H$90,8,FALSE) -> 21.875 | G18: - | H18: =-PMT('Fixed Cost Input'!$C$11,20,(HLOOKUP('Data (HIDE)'!$B$13,'Data (HIDE)'!$C$46:$G$53,7,FALSE)/60*(('Fixed Cost Input'!$C$17*'Fixed Cost Input'!$D$17)+('Fixed Cost Input'!$C$18*'Fixed Cost Input'!$D$18)+('Fixed Cost Input'!$C$19*'Fixed Cost Input'!$D$19))*'Fixed Cost Input'!$D$20),0) -> 9.960305963 | I18: - | J18: - | K18: - | L18: - | M18: - | N18: 0 | AB18: =MROUND(HLOOKUP('Data (HIDE)'!$V$14,'Data (HIDE)'!$C$68:$G$75,7,FALSE)+'Data (HIDE)'!$D$77,0.25) -> 36.75 | AC18: =HLOOKUP('Data (HIDE)'!$W$14,'Data (HIDE)'!$D$82:$H$90,8,FALSE) -> 21.875
B19: ='Seed, Fertilizer & Chemical'!B10 -> Lentil | C19: 0.2 | D19: 31.89509921 | E19: =MROUND(HLOOKUP('Data (HIDE)'!$V$14,'Data (HIDE)'!$C$68:$G$75,8,FALSE)+'Data (HIDE)'!$D$77,0.25) -> 20.5 | F19: =HLOOKUP('Data (HIDE)'!$W$14,'Data (HIDE)'!$D$82:$H$90,9,FALSE) -> 16.25 | G19: - | H19: =-PMT('Fixed Cost Input'!$C$11,20,(HLOOKUP('Data (HIDE)'!$B$13,'Data (HIDE)'!$C$46:$G$53,8,FALSE)/60*(('Fixed Cost Input'!$C$17*'Fixed Cost Input'!$D$17)+('Fixed Cost Input'!$C$18*'Fixed Cost Input'!$D$18)+('Fixed Cost Input'!$C$19*'Fixed Cost Input'!$D$19))*'Fixed Cost Input'!$D$20),0) -> 4.871888786 | I19: - | J19: - | K19: - | L19: - | M19: - | N19: 0 | AB19: =MROUND(HLOOKUP('Data (HIDE)'!$V$14,'Data (HIDE)'!$C$68:$G$75,8,FALSE)+'Data (HIDE)'!$D$77,0.25) -> 20.5 | AC19: =HLOOKUP('Data (HIDE)'!$W$14,'Data (HIDE)'!$D$82:$H$90,9,FALSE) -> 16.25
A20: =IF('Data (HIDE)'!B13="Manitoba","* "&'Data (HIDE)'!B14&" - Based on MASC Risk Areas 2, 5, 6, & 12","* "&'Data (HIDE)'!B14&" - Based on MASC "&'Data (HIDE)'!B13) -> * 80% Insured Value - Based on MASC Risk Areas 2, 5, 6, & 12 | H20: ** Storage costs are listed under Fixed Costs on the Summary Page.
A22: Field Fuel Usage
E24: Number of Field Operations & Litres Fuel Per Acre Per Operation | M24: Trucks L/acre
E25: cultivator or tandem disk | F25: high speed disk | G25: harrow or land roller | H25: air drill | I25: row planter | J25: SP sprayer | K25: swather | L25: combine & grain cart | M25: 3/4 ton pickup | N25: grain hauling
D26: Total
A27: Crop | D27: L/acre | E27: 2.9 | F27: 3.5 | G27: 1.3 | H27: 2.8 | I27: 1.9 | J27: 0.5 | K27: 1.8 | L27: 7 | M27: 2
B28: =B13 -> Hempseed | D28: =SUM(E28*$E$27)+(F28*$F$27)+(G28*$G$27)+(H28*$H$27)+(I28*$I$27)+(J28*$J$27)+(K28*$K$27)+(L28*$L$27)+M28+N28 -> 23.46396651 | E28: 1 | F28: 1 | G28: 2 | H28: 1 | J28: 2 | L28: 1 | M28: =$M$27 -> 2 | N28: =SUM((($I$4/$I$6)*4.546)/('Op. Cost Input'!$I$7/(HLOOKUP(B28,Summary!$C$2:$S$37,36,FALSE)/44)))+((($I$5/$I$6)*4.546)/('Op. Cost Input'!$I$7/(HLOOKUP(B28,Summary!$C$2:$S$37,36,FALSE)/44))) -> 1.663966507
B29: Black Bean | D29: =SUM(E29*$E$27)+(F29*$F$27)+(G29*$G$27)+(H29*$H$27)+(I29*$I$27)+(J29*$J$27)+(K29*$K$27)+(L29*$L$27)+M29+N29 -> 22.96588211 | E29: 1 | G29: 2 | I29: 1 | J29: 4 | K29: 1 | L29: 1 | M29: 2 | N29: =SUM((($I$4/$I$6)*4.546)/('Op. Cost Input'!$I$7/(HLOOKUP(B29,Summary!$C$2:$S$37,36,FALSE)/60)))+((($I$5/$I$6)*4.546)/('Op. Cost Input'!$I$7/(HLOOKUP(B29,Summary!$C$2:$S$37,36,FALSE)/60))) -> 2.765882105
B30: Kidney Bean | D30: 22.55913474 | E30: 1 | G30: 2 | I30: 1 | J30: 4 | K30: 1 | L30: 1 | M30: 2 | N30: =SUM((($I$4/$I$6)*4.546)/('Op. Cost Input'!$I$7/(HLOOKUP(B30,Summary!$C$2:$S$37,36,FALSE)/60)))+((($I$5/$I$6)*4.546)/('Op. Cost Input'!$I$7/(HLOOKUP(B30,Summary!$C$2:$S$37,36,FALSE)/60))) -> 2.359134737
B31: Buckwheat | D31: 20.36190989 | E31: 1 | G31: 1 | H31: 1 | J31: 2 | K31: 1 | L31: 1 | M31: 2 | N31: =SUM((($I$4/$I$6)*4.546)/('Op. Cost Input'!$I$7/HLOOKUP(B31,Summary!$C$2:$I$37,36,FALSE)))+((($I$5/$I$6)*4.546)/('Op. Cost Input'!$I$7/HLOOKUP(B31,Summary!$C$2:$I$37,36,FALSE))) -> 1.561909895
B32: Canaryseed | D32: 22.32620042 | E32: 1 | G32: 1 | H32: 1 | J32: 3 | K32: 1 | L32: 1 | M32: 2 | N32: =SUM((($I$4/$I$6)*4.546)/('Op. Cost Input'!$I$7/(HLOOKUP(B32,Summary!$C$2:$S$37,36,FALSE)/50)))+((($I$5/$I$6)*4.546)/('Op. Cost Input'!$I$7/(HLOOKUP(B32,Summary!$C$2:$S$37,36,FALSE)/50))) -> 3.026200421
B33: Fababean | D33: 21.24207579 | E33: 1 | G33: 1 | H33: 1 | J33: 3 | L33: 1 | M33: 2 | N33: =SUM((($I$4/$I$6)*4.546)/('Op. Cost Input'!$I$7/(HLOOKUP(B33,Summary!$C$2:$S$37,36,FALSE)/60)))+((($I$5/$I$6)*4.546)/('Op. Cost Input'!$I$7/(HLOOKUP(B33,Summary!$C$2:$S$37,36,FALSE)/60))) -> 3.742075789
B34: Lentil | D34: 19.33036316 | E34: 1 | G34: 1 | H34: 1 | J34: 3 | L34: 1 | M34: 2 | N34: =SUM((($I$4/$I$6)*4.546)/('Op. Cost Input'!$I$7/(HLOOKUP(B34,Summary!$C$2:$S$37,36,FALSE)/60)))+((($I$5/$I$6)*4.546)/('Op. Cost Input'!$I$7/(HLOOKUP(B34,Summary!$C$2:$S$37,36,FALSE)/60))) -> 1.830363158

Sheet Fixed Cost Input
A1: Fixed Costs
B3: Land | I3: Conventional | J3: Special
B4: Average Land value ($/acre) | D4: 3750 | G4: Machinery | I4: Crop | J4: Crop
B5: Conventional Crop acres | D5: 2000 | G5: Total Investment ($/acre) | I5: =ROUND((C44)/(D5+D6),2) -> 600 | J5: =ROUND((C52)/(D6+D5),2) -> 72
B6: Special Crop acres | D6: 500 | G6: Residual Value (End of Useful Life) | I6: 0.25
B7: Owned Land Equity | D7: 0.85 | G7: Useful Life (years) | I7: 15
B8: Land Financed | D8: =SUM(1-D7) -> 0.15 | G8: Owned Equipment Equity | I8: 0.55
B9: Land Opportunity Cost (Investment Rate) | D9: 0.015 | G9: Equipment Financed | I9: =SUM(1-I8) -> 0.45
B10: Land cost ($/acre) | G10: Machinery Opportunity Cost (Investment Rate) | I10: 0.015
B11: Finance Rate & Term | C11: 0.0725 | D11: 25 | E11: Years
B12: Principle & Interest Cost | D12: =-PMT(C11,D11,D4*D8,0) -> 49.36044514 | G12: Machinery Cost ($/acre)
B13: Owned Land Opportunity Cost | D13: =SUM(D4*D7)*(D9) -> 47.8125 | G13: Finance Rate & Term | H13: 0.0775 | I13: 7 | J13: Years
B14: Total Cost | D14: =SUM(D12:D13) -> 97.17294514 | G14: Principle & Interest Cost | I14: =-PMT(H13,I13,I5*I9,0) -> 51.41697767 | J14: =-PMT(H13,I13,J5*I9,0) -> 6.170037321
G15: Machinery Depreciation Cost | I15: =(I5-(I5*I6))/I7 -> 30 | J15: =(J5-(J5*I6))/I7 -> 3.6
B16: Grain Storage | C16: Usage % | D16: Cost | G16: Owned Machinery Opportunity Cost | I16: =SUM(I5*I8)*(I10) -> 4.95 | J16: =SUM(J5*I8)*(I10) -> 0.594
B17: Non-aeration bins | C17: 0.15 | D17: 3.5 | E17: /bu | I17: =SUM(I14:I16) -> 86.36697767 | J17: =SUM(J14:J16) -> 10.36403732
B18: Aeration bins | C18: 0.7 | D18: 4.5 | E18: /bu
B19: Hopper bins | C19: 0.15 | D19: 5.5 | E19: /bu | G19: Total Land & Machinery Debt ($/acre) | I19: =(D4*D8)+((I5+J5)*I9) -> 864.9
B20: Storage Financed | D20: 0.6 | G20: Machinery Lease cost ($/acre) | I20: =D62 -> 0
A22: Conventional Crop Equipment Inventory and Current Values
C23: Market | D23: Grain | E23: Grain | H23: Market | I23: Grain | J23: Grain
A24: Power & Misc Equipment | C24: Value | D24: Usage % | E24: Allocation | G24: Harvest Equipment | H24: Value | I24: Usage % | J24: Allocation
B25: 4WD Tractor 475HP | C25: 300000 | D25: 1 | E25: =SUM(C25*D25) -> 300000 | G25: Combine | H25: 300000 | I25: 1 | J25: =SUM(H25*I25) -> 300000
B26: MFWD Tractor 150HP | C26: 120000 | D26: 1 | E26: =SUM(C26*D26) -> 120000 | G26: Swather 35 ft | H26: 36000 | I26: 1 | J26: =SUM(H26*I26) -> 36000
B27: 2WD Tractor 60HP | C27: 36000 | D27: 1 | E27: 36000 | G27: Harvest Header | H27: 60000 | I27: 1 | J27: 60000
B28: ATV Quad | C28: 6000 | D28: 1 | E28: 6000 | G28: Tandem grain truck | H28: 72000 | I28: 1 | J28: 72000
C29: 0 | D29: 0 | E29: 0 | G29: Grain cart | H29: 40000 | I29: 1 | J29: 40000
C30: 0 | D30: 0 | E30: 0 | H30: 0 | I30: 0 | J30: 0
C31: 0 | D31: 0 | E31: 0 | H31: 0 | I31: 0 | J31: 0
B32: Total | E32: =SUM(E25:E31) -> 462000 | G32: Total | J32: =SUM(J25:J31) -> 508000
C34: Market | D34: Grain | E34: Grain | H34: Market | I34: Grain | J34: Grain
A35: Seeding & Tillage | C35: Value | D35: Usage % | E35: Allocation | G35: Spraying & Misc. | H35: Value | I35: Usage % | J35: Allocation
B36: Cultivator | C36: 18000 | D36: 1 | E36: =SUM(C36*D36) -> 18000 | G36: SP sprayer | H36: 210000 | I36: 1 | J36: =SUM(H36*I36) -> 210000
B37: Harrow 80ft | C37: 32000 | D37: 1 | E37: 32000 | G37: Miscellaneous | H37: 10000 | I37: 1 | J37: 10000
B38: Air tank | C38: 70000 | D38: 1 | E38: 70000 | G38: PTO Auger 13x70 | H38: 15000 | I38: 1 | J38: 15000
B39: Air drill | C39: 150000 | D39: 1 | E39: 150000 | G39: Auger 8x35 | H39: 5000 | I39: 1 | J39: 5000
C40: 0 | D40: 0 | E40: 0 | G40: Farm Pickup truck | H40: 40000 | I40: 0.5 | J40: 20000
C41: 0 | D41: 0 | E41: 0 | H41: 0 | I41: 0 | J41: 0
B42: Total | C42: =SUM(C36:C41) -> 270000 | E42: =SUM(E36:E41) -> 270000 | G42: Total | J42: =SUM(J36:J41) -> 260000
B44: Owned Equipment TOTAL | C44: =SUM(E32+J32+E42+J42) -> 1500000
A46: Special Crop Equipment Inventory and Current Values
C47: Market | D47: Grain | E47: Grain | H47: Market | I47: Grain | J47: Grain
A48: Seeding, Tillage, Spraying | C48: Value | D48: Usage % | E48: Allocation | G48: Harvest Equipment | H48: Value | I48: Usage % | J48: Allocation
B49: Planter | C49: 120000 | D49: 1 | E49: =SUM(C49*D49) -> 120000 | G49: Harvest Header | H49: 60000 | I49: 1 | J49: =SUM(H49*I49) -> 60000
C50: 0 | D50: 0 | E50: =SUM(C50*D50) -> 0 | H50: 0 | I50: 0 | J50: =SUM(H50*I50) -> 0
B51: Total | E51: =SUM(E49:E50) -> 120000 | G51: Total | J51: =SUM(J49:J50) -> 60000
B52: Special Equipment TOTAL | C52: =SUM(E51+J51) -> 180000
A54: Leased Equipment Inventory
C55: Annual | D55: Grain | E55: Grain | H55: Annual | I55: Grain | J55: Grain
A56: Seeding, Tillage, Spraying | C56: Lease | D56: Usage % | E56: Allocation | G56: Trucks & Trailers | H56: Lease | I56: Usage % | J56: Allocation
B57: enter equipment here | C57: 0 | D57: 0 | E57: =SUM(C57*D57) -> 0 | G57: enter equipment here | H57: 0 | I57: 0 | J57: =SUM(H57*I57) -> 0
C58: 0 | D58: 0 | E58: =SUM(C58*D58) -> 0 | H58: 0 | I58: 0 | J58: =SUM(H58*I58) -> 0
C59: 0 | D59: 0 | E59: =SUM(C59*D59) -> 0 | H59: 0 | I59: 0 | J59: =SUM(H59*I59) -> 0
B60: Total | C60: =SUM(C57:C59) -> 0 | E60: =SUM(E57:E59) -> 0 | G60: Total | J60: =SUM(J57:J59) -> 0
B62: Leased Equipment TOTAL | C62: =SUM(E60+J60) -> 0 | D62: =SUM(C62/(D5+D6)) -> 0 | E62: per acre
B63: * Leased equipment costs are listed under Operating Costs on the Summary Page.

Sheet Assumptions
A1: Other Assumptions
A3: Fuel Costs: Includes fuel used for field work, trucking in inputs and trucking out production.
A5: Machinery Operating Costs: Includes costs for maintenance, repairs, licenses and insurance, based on 3.2% of machinery investment cost.
A8: Crop Insurance: (2022 rates)
A9: =IF('Data (HIDE)'!B13="Manitoba",'Data (HIDE)'!B14&" coverage, $100/acre excess moisture Insurance, and additional hail insurance at $"&'Data (HIDE)'!W13&"/acre coverage for all crops. Coverage and costs based on MASC Risk Areas #2, 5, 6, and 12.",'Data (HIDE)'!B14&" coverage, $50/acre excess moisture Insurance, and additional hail insurance at $"&'Data (HIDE)'!W13&"/acre coverage for all crops. Coverage and costs based on MASC "&'Data (HIDE)'!B13) -> 80% Insured Value coverage, $100/acre excess moisture Insurance, and additional hail insurance at $400/acre coverage for all crops. Coverage and costs based on MASC Risk Areas #2, 5, 6, and 12.
A12: Other Costs: Includes overhead expenses - hydro, telephone, accounting, buildings, supplies and insurance, etc.
A14: Land Taxes: The average cost based on land tax assessment and mill rates of a sample of municipalities growing crops less provincial tax rebate.
A16: Interest On Operating: | D16: ="Interest charges on operating costs are calculated at "&'Op. Cost Input'!D3*100&"% for six months." -> Interest charges on operating costs are calculated at 7.75% for six months.
A18: Land Cost:
A19: ="Based on approximate average land values. Budget assumed "&'Fixed Cost Input'!D8*100&"% financed at "&'Fixed Cost Input'!C11*100&"% for "&'Fixed Cost Input'!D11&" years, plus "&'Fixed Cost Input'!D9*100&"% land equity opportunity cost. Budget can be used to estimate cashflow by removing investment cost." -> Based on approximate average land values. Budget assumed 15% financed at 7.25% for 25 years, plus 1.5% land equity opportunity cost. Budget can be used to estimate cashflow by removing investment cost.
A21: ="P&I Cost (based on "&TEXT('Fixed Cost Input'!D4*('Fixed Cost Input'!D5+'Fixed Cost Input'!D6)*'Fixed Cost Input'!D8,"$#,###")&" Mortgage) = $"&TEXT('Fixed Cost Input'!D12*('Fixed Cost Input'!D5+'Fixed Cost Input'!D6),"#,###")&" payments per year) / "&'Fixed Cost Input'!D5+'Fixed Cost Input'!D6&" acres = $"&TEXT('Fixed Cost Input'!D12,"0.00")&"/acre)" -> P&I Cost (based on $1,406,250 Mortgage) = $123,401 payments per year) / 2500 acres = $49.36/acre)
A22: ="Investment = (Total Investment x Owned Equity %) x Investment Rate % (eg. (($"&TEXT('Fixed Cost Input'!D4,"#,###")&" x "&'Fixed Cost Input'!D7*100&"%) x "&'Fixed Cost Input'!D9*100&"%) = $"&TEXT('Fixed Cost Input'!D13,"0.00")&"/acre)" -> Investment = (Total Investment x Owned Equity %) x Investment Rate % (eg. (($3,750 x 85%) x 1.5%) = $47.81/acre)
A24: Machinery Cost:
A25: ="Based on approximate average machinery values. Budget assumed "&'Fixed Cost Input'!I9*100&"% financed at "&'Fixed Cost Input'!H13*100&"% for "&'Fixed Cost Input'!I13&" years, depreciation costs over "&'Fixed Cost Input'!I7&" years with a "&'Fixed Cost Input'!I6*100&"% residual value, plus "&'Fixed Cost Input'!I10*100&"% machinery equity opportunity cost. Budget can be used to estimate cashflow by removing depreciation and investment cost. " -> Based on approximate average machinery values. Budget assumed 45% financed at 7.75% for 7 years, depreciation costs over 15 years with a 25% residual value, plus 1.5% machinery equity opportunity cost. Budget can be used to estimate cashflow by removing depreciation and investment cost.
A28: ="P&I Cost (based on "&TEXT('Fixed Cost Input'!C44*'Fixed Cost Input'!I9,"$#,###")&" + "&TEXT('Fixed Cost Input'!C52*'Fixed Cost Input'!I9,"$#,###")&" Loans) = $"&TEXT('Fixed Cost Input'!I14*('Fixed Cost Input'!D5+'Fixed Cost Input'!D6),"#,###")&" + $"&TEXT('Fixed Cost Input'!J14*('Fixed Cost Input'!D5+'Fixed Cost Input'!D6),"#,###")&" payments per year) / "&'Fixed Cost Input'!D5+'Fixed Cost Input'!D6&" acres = $"&TEXT('Fixed Cost Input'!I14,"0.00")&" and $"&TEXT('Fixed Cost Input'!J14,"0.00")&"/acre)" -> P&I Cost (based on $675,000 + $81,000 Loans) = $128,542 + $15,425 payments per year) / 2500 acres = $51.42 and $6.17/acre)
A29: ="Depreciation (Useage Cost) = (Total Investment - Residual Value) / Years Useful Life (eg. ($"&TEXT('Fixed Cost Input'!I5,"0.00")&" - ($"&TEXT('Fixed Cost Input'!I5,"0.00")&" x "&'Fixed Cost Input'!I6*100&"%)) / "&'Fixed Cost Input'!I7&" = $"&TEXT('Fixed Cost Input'!I15,"0.00")&"/acre)" -> Depreciation (Useage Cost) = (Total Investment - Residual Value) / Years Useful Life (eg. ($600.00 - ($600.00 x 25%)) / 15 = $30.00/acre)
A30: ="Investment = (Total Investment x Owned Equity %) x Investment Rate % (eg. ($"&'Fixed Cost Input'!I5&" x "&'Fixed Cost Input'!I8*100&"%) x "&'Fixed Cost Input'!I10*100&"%) = $"&TEXT('Fixed Cost Input'!I16,"0.00")&"/acre)" -> Investment = (Total Investment x Owned Equity %) x Investment Rate % (eg. ($600 x 55%) x 1.5%) = $4.95/acre)
A32: Depreciation Cost = Original Cost - Salvage Value
A33: =" Useful Life" -> Useful Life
A34: Investment Cost = Original Cost + Salvage Value x Investment Rate
A35: =" 2" -> 2
A36: Estimated Farmgate Values:
A37: Target crop prices are based on deferred delivery contract prices for fall 2023.
A38: Target yields are estimated based on 5 year MASC average yields.
A40: Storage Cost:
A41: Storage costs for each crop are based on estimated yields entered on the Summary page.
A42: ="Budget assumed "&'Fixed Cost Input'!D20*100&"% financed at "&'Fixed Cost Input'!C11*100&"% for 20 years." -> Budget assumed 60% financed at 7.25% for 20 years.
A43: ="Farm storage requirements were assumed to cost $"&TEXT('Fixed Cost Input'!D17,"0.00")&"/bushel for "&'Fixed Cost Input'!C17*100&"% of the storage, $"&TEXT('Fixed Cost Input'!D18,"0.00")&"/bushel for "&'Fixed Cost Input'!C18*100&"% aerated storage and $"&TEXT('Fixed Cost Input'!D19,"0.00")&"/bushel for "&'Fixed Cost Input'!C19*100&"% hopper storage." -> Farm storage requirements were assumed to cost $3.50/bushel for 15% of the storage, $4.50/bushel for 70% aerated storage and $5.50/bushel for 15% hopper storage.
A46: Profitability, Breakeven & Risk Analysis Formulas:
A47: ="Gross Revenue = Price per unit x Yield per acre (eg. kidney bean: $"&TEXT('Data (HIDE)'!E18,"0.00")&"/lb x "&'Data (HIDE)'!C18&"lb/ac = $"&TEXT('Data (HIDE)'!AL18, "0.00")&"/ac)" -> Gross Revenue = Price per unit x Yield per acre (eg. kidney bean: $0.90/lb x 750lb/ac = $675.00/ac)
A48: ="Net Profit = Gross Revenue - Total Cost (eg. kidney bean: $"&TEXT('Data (HIDE)'!AL18,"0.00")&" gross revenue - $"&TEXT('Data (HIDE)'!AI18,"0.00")&" total cost = $"&TEXT('Data (HIDE)'!AM18,"0.00")&" per acre)" -> Net Profit = Gross Revenue - Total Cost (eg. kidney bean: $675.00 gross revenue - $619.29 total cost = $55.71 per acre)
A49: ="Operating Expense Ratio = (Operating Cost / Gross Revenue) x 100 (eg. kidney bean: $"&TEXT('Data (HIDE)'!AC18,"0.00")&" operating expense / $"&ROUND('Data (HIDE)'!AL18,2)&" revenue = "&TEXT('Data (HIDE)'!AN18*100,"0.0")&"%)" -> Operating Expense Ratio = (Operating Cost / Gross Revenue) x 100 (eg. kidney bean: $409.75 operating expense / $675 revenue = 60.7%)
A50: ="Return on Investment (ROI) = (Gross Revenue - Total Cost) / Total Cost (eg. kidney bean: ($"&TEXT('Data (HIDE)'!AL18,"0.00")&" - $"&TEXT('Data (HIDE)'!AI18,"0.00")&") / $"&TEXT('Data (HIDE)'!AI18,"0.00")&" = "&TEXT('Data (HIDE)'!AT18*100,"0.0")&"%)" -> Return on Investment (ROI) = (Gross Revenue - Total Cost) / Total Cost (eg. kidney bean: ($675.00 - $619.29) / $619.29 = 9.0%)
A51: Estimated Return on Asset (ROA) = (Margin Over Operating - Labour - Machinery Depreciation) / (Land Investment Cost + Machinery Investment Cost)
A52: =" (eg. kidney bean: ($"&TEXT('Data (HIDE)'!AL18-'Data (HIDE)'!AC18,"0.00")&" margin - $"&TEXT('Data (HIDE)'!AH18,"0.00")&" labour - $"&TEXT(('Fixed Cost Input'!$I$15+'Fixed Cost Input'!$J$15),"0.00")&" dep.) / ($"&'Fixed Cost Input'!D4&" land cost + $"&TEXT('Fixed Cost Input'!I5,"0.00")&" conv. machinery + $"&TEXT('Fixed Cost Input'!J5,"0.00")&" special crop. mach.) = "&TEXT('Data (HIDE)'!AS18*100,".00")&"%) " -> (eg. kidney bean: ($265.25 margin - $26.00 labour - $33.60 dep.) / ($3750 land cost + $600.00 conv. machinery + $72.00 special crop. mach.) = 4.73%)
A53: ="Breakeven Price = Cost / Target Yield (eg. kidney bean cost $"&TEXT('Data (HIDE)'!AI18,"0.00")&" / "&'Data (HIDE)'!C18&" lb = $"&TEXT('Data (HIDE)'!AO18,"0.00")&" per lb)" -> Breakeven Price = Cost / Target Yield (eg. kidney bean cost $619.29 / 750 lb = $0.83 per lb)
A54: ="Breakeven Yield = Cost / Target Price per Unit (eg. kidney bean cost $"&TEXT('Data (HIDE)'!AI18,"0.00")&" / $"&TEXT('Data (HIDE)'!E18,"0.00")&" lb = "&TEXT('Data (HIDE)'!AP18,"0.0")&" lb)" -> Breakeven Yield = Cost / Target Price per Unit (eg. kidney bean cost $619.29 / $0.90 lb = 688.1 lb)
A55: ="Breakeven Yield Risk Ratio = (Yield per Acre / Breakeven Yield) x 100 (eg. kidney bean yield "&'Data (HIDE)'!C18&" lb/ac / "&TEXT('Data (HIDE)'!AP18,"0.0")&" lb BE = "&ROUND('Data (HIDE)'!AQ18*100,0)&" %)" -> Breakeven Yield Risk Ratio = (Yield per Acre / Breakeven Yield) x 100 (eg. kidney bean yield 750 lb/ac / 688.1 lb BE = 109 %)
A56: ="AgriInsurance Risk Ratio = (AgriInsurance Coverage / Operating Cost) x 100 (eg. kidney bean coverage $"&TEXT('Data (HIDE)'!AJ18,"0.00")&"/ac / $"&TEXT('Data (HIDE)'!AC18,"0.00")&" operating expense = "&ROUND('Data (HIDE)'!AR18*100,0)&" %)" -> AgriInsurance Risk Ratio = (AgriInsurance Coverage / Operating Cost) x 100 (eg. kidney bean coverage $396.24/ac / $409.75 operating expense = 97 %)

Sheet Chart data (HIDE) (hidden)
A2: ='Data (HIDE)'!B13&" Breakeven Yield Risk Ratio - "&Introduction!I11 -> Manitoba Breakeven Yield Risk Ratio - 2023
A3: ='Data (HIDE)'!B13&" Risk & Reward Analysis - "&Introduction!I11 -> Manitoba Risk & Reward Analysis - 2023 | E3: 80% Coverage of Total Costs
A4: ='Data (HIDE)'!B13&" - "&'Data (HIDE)'!B14&" AgriInsurance Risk Analysis - "&Introduction!I11 -> Manitoba - 80% Insured Value AgriInsurance Risk Analysis - 2023
B5: Operating Costs | C5: ='Data (HIDE)'!B14 -> 80% Insured Value | D5: 80% Coverage of Operating Costs | E5: 80% Coverage of Total Costs (Risk) | F5: Return on Asset (Reward) | G5: Return on Investment (Reward) | L5: Target Yield as % of B/E Yield
A6: ='Data (HIDE)'!B16 -> Black Bean | B6: ='Data (HIDE)'!AC16 -> 546.2185094 | C6: ='Data (HIDE)'!AJ16 -> 564.676 | D6: ='Data (HIDE)'!AV16 -> 1.033791405 | E6: ='Data (HIDE)'!AW16 -> 0.7370570927 | F6: ='Data (HIDE)'!AS16 -> 0.03599762339 | G6: ='Data (HIDE)'!AT16 -> -0.001465130621 | L6: ='Data (HIDE)'!AX16 -> 0.9985315712
A7: ='Data (HIDE)'!B17 -> Kidney Bean | B7: ='Data (HIDE)'!AC17 -> 615.0247343 | C7: ='Data (HIDE)'!AJ17 -> 655.044 | D7: ='Data (HIDE)'!AV17 -> 1.06506936 | E7: ='Data (HIDE)'!AW17 -> 0.7845508298 | F7: ='Data (HIDE)'!AS17 -> 0.008112904964 | G7: ='Data (HIDE)'!AT17 -> -0.1490291269 | L7: ='Data (HIDE)'!AX17 -> 0.8509889078
A8: ='Data (HIDE)'!B18 -> Hempseed | B8: ='Data (HIDE)'!AC18 -> 409.7523732 | C8: ='Data (HIDE)'!AJ18 -> 396.24 | D8: ='Data (HIDE)'!AV18 -> 0.9670230753 | E8: ='Data (HIDE)'!AW18 -> 0.63982711 | F8: ='Data (HIDE)'!AS18 -> 0.04731968043 | G8: ='Data (HIDE)'!AT18 -> 0.08995381406 | L8: ='Data (HIDE)'!AX18 -> 1.089957855
A9: ='Data (HIDE)'!B19 -> Fababean | B9: ='Data (HIDE)'!AC19 -> 304.7643715 | C9: ='Data (HIDE)'!AJ19 -> 237.44 | D9: ='Data (HIDE)'!AV19 -> 0.7790936941 | E9: ='Data (HIDE)'!AW19 -> 0.4616722097 | F9: ='Data (HIDE)'!AS19 -> 0.0380451444 | G9: ='Data (HIDE)'!AT19 -> 0.02857395105 | L9: ='Data (HIDE)'!AX19 -> 1.02857654
A10: ='Data (HIDE)'!B20 -> Buckwheat | B10: ='Data (HIDE)'!AC20 -> 256.4161118 | C10: ='Data (HIDE)'!AJ20 -> 151.632 | D10: ='Data (HIDE)'!AV20 -> 0.5913512959 | E10: ='Data (HIDE)'!AW20 -> 0.3254212602 | F10: ='Data (HIDE)'!AS20 -> -0.007330644915 | G10: ='Data (HIDE)'!AT20 -> -0.3990849368 | L10: ='Data (HIDE)'!AX20 -> 0.6015037594
A11: ='Data (HIDE)'!B21 -> Canaryseed | B11: ='Data (HIDE)'!AC21 -> 327.4255216 | C11: ='Data (HIDE)'!AJ21 -> 434.88 | D11: ='Data (HIDE)'!AV21 -> 1.328179911 | E11: ='Data (HIDE)'!AW21 -> 0.8098845178 | F11: ='Data (HIDE)'!AS21 -> 0.03597342343 | G11: ='Data (HIDE)'!AT21 -> 0.01030709828 | L11: ='Data (HIDE)'!AX21 -> 1.010298527
A12: ='Data (HIDE)'!B22 -> Lentil | B12: ='Data (HIDE)'!AC22 -> 278.036802 | C12: ='Data (HIDE)'!AJ22 -> 250.56 | D12: ='Data (HIDE)'!AV22 -> 0.9011756652 | E12: ='Data (HIDE)'!AW22 -> 0.5138883528 | F12: ='Data (HIDE)'!AS22 -> 0.0313123469 | G12: ='Data (HIDE)'!AT22 -> -0.03092174844 | L12: ='Data (HIDE)'!AX22 -> 0.9690757171

Sheet Data (HIDE) (hidden)
B1: Annual Update Steps: | L1: To Do List:
B2: copy & paste 'Green' data blocks below from annual MASC cost and coverage information spreadsheet.
B3: enter COP yields into 'yellow' data block below | BD3: =V14&" Yield per Acre - "&Introduction!I11 -> Manitoba Yield per Acre - 2023
B4: enter MASC insured values & COP yields into 'yellow' data blocks below
B5: enter MASC SAR acres into data block below and change formula for 5 year average.
B6: select yellow rows and sort
B11: *****Re-sort Yellow rows based on column I for 5yr Avg Ac Ranking or column K for 2018 Ranking ****** *****SUMMARY will AUTO update!! ****** | O11: ****sort on column F to reset to original listing ****
W12: Hail Ins. coverage / acre
B13: Manitoba | W13: 400
B14: 80% Insured Value | E14: **Change Mkt Prices Here*** | J14: **Change yr for Risk pg*** | V14: =B13 -> Manitoba | W14: =B13 -> Manitoba | AJ14: =V14 -> Manitoba | AV14: AgriInsurance Insured Value
C15: Yield | D15: Unit | E15: Price | F15: Default RANK | G15: Manual Rank | H15: 5 yr Avg Acres | I15: 5 yr Avg Acres RANK | J15: 2022 Acres | K15: 2020 Acres RANK | L15: Seed & Treatment | M15: Fertilizer | N15: Herbicide | O15: Fungicide | P15: Insecticide | Q15: Fuel | R15: Machinery Operating | S15: Machinery Lease | T15: Rental and Custom | U15: Labour | V15: Crop Insurance | W15: Hail Insurance | X15: Other Costs | Y15: Land Taxes | Z15: Storage Costs | AA15: Drying Costs | AB15: Interest on Operating | AC15: Total Operating | AD15: Land Investment Costs | AE15: Machinery Costs | AF15: Total Fixed | AG15: Total Operating & Fixed | AH15: Labour | AI15: Total Costs | AJ15: Insured value | AK15: % Premium | AL15: Gross Revenue | AM15: Margin Over Total Costs (Net Profit) | AN15: Operating Expense Ratio | AO15: B/E Price Over Total Costs | AP15: Breakeven Yield Over Total Costs | AQ15: B/E Yield Risk Ratio | AR15: AgriInsurance Risk Ratio | AS15: Estimated ROA (Reward) | AT15: Estimated ROI (Reward) | AV15: % of Op Cost | AW15: % of Total Costs | AX15: Target or Average Yield as % of B/E Yield
B16: Black Bean | C16: =HLOOKUP($B$13,$C$46:$G$53,3,FALSE) -> 1700 | D16: lb | E16: 0.45 | F16: 2 | G16: 1 | H16: =$C$38 -> 24951.4 | I16: =RANK(H16,$H$16:$H$22) -> 1 | J16: =$D38 -> 21053 | K16: =RANK(J16,$J$16:$J$22) -> 1 | L16: ='Seed, Fertilizer & Chemical'!J5 -> 115 | M16: ='Seed, Fertilizer & Chemical'!O27 -> 113.2378386 | N16: ='Seed, Fertilizer & Chemical'!D46 -> 84.02 | O16: ='Seed, Fertilizer & Chemical'!F46 -> 40.5 | P16: ='Seed, Fertilizer & Chemical'!G46 -> 0 | Q16: ='Op. Cost Input'!D14 -> 37.89370547 | R16: ='Op. Cost Input'!$D$6 -> 25 | S16: ='Fixed Cost Input'!$I$20 -> 0 | T16: ='Op. Cost Input'!N14 -> 0 | U16: ='Op. Cost Input'!$D$5*'Op. Cost Input'!$C13 -> 5.2 | V16: ='Op. Cost Input'!E14 -> 40.5 | W16: ='Op. Cost Input'!F14 -> 21.875 | X16: ='Op. Cost Input'!$D$7 -> 17.75 | Y16: ='Op. Cost Input'!$D$4 -> 17.5 | Z16: ='Op. Cost Input'!H14 -> 7.361965277 | AA16: =IF('Op. Cost Input'!G14="-",0,'Op. Cost Input'!G14) -> 0 | AB16: =ROUND(SUM(L16:AA16)/2*('Op. Cost Input'!$D$3),2) -> 20.38 | AC16: =SUM(L16:AB16) -> 546.2185094 | AD16: ='Fixed Cost Input'!$D$14 -> 97.17294514 | AE16: ='Fixed Cost Input'!$I$17+'Fixed Cost Input'!$J$17 -> 96.73101499 | AF16: =SUM(AD16:AE16) -> 193.9039601 | AG16: =SUM(AF16+AC16) -> 740.1224695 | AH16: ='Op. Cost Input'!$D$5*'Op. Cost Input'!$D$9 -> 26 | AI16: =SUM(AG16+AH16) -> 766.1224695 | AJ16: =IF($B$14="80% Insured Value",HLOOKUP($V$14,$D$57:$H$64,3,FALSE),IF($B$14="70% Insured Value",HLOOKUP($V$14,#REF!,3,FALSE),HLOOKUP($V$14,#REF!,3,FALSE))) -> 564.676 | AK16: =SUM(V16/AJ16) -> 0.07172254532 | AL16: =SUM(C16*E16) -> 765 | AM16: =SUM(AL16-AI16) -> -1.122469489 | AN16: =SUM(AC16/AL16) -> 0.7140111233 | AO16: =SUM(AI16/C16) -> 0.4506602762 | AP16: =ROUND(AI16/E16,1) -> 1702.5 | AQ16: =SUM(C16/AP16) -> 0.9985315712 | AR16: =SUM(AJ16/AC16) -> 1.033791405 | AS16: =SUM((AL16-AC16-AH16-('Fixed Cost Input'!$I$15+'Fixed Cost Input'!$J$15))/(('Fixed Cost Input'!$D$4)+'Fixed Cost Input'!$I$5+'Fixed Cost Input'!$J$5)) -> 0.03599762339 | AT16: =AM16/AI16 -> -0.001465130621 | AV16: =SUM(AJ16/AC16) -> 1.033791405 | AW16: =SUM(AJ16/AI16) -> 0.7370570927 | AX16: =C16/AP16 -> 0.9985315712 | BO16: =SUM(C16*E16) -> 765
B17: Kidney Bean | C17: =HLOOKUP($B$13,$C$46:$G$53,4,FALSE) -> 1450 | D17: lb | E17: 0.49 | F17: 3 | G17: 3 | H17: =$C$39 -> 9803 | I17: 2 | J17: =$D$39 -> 4300 | K17: 4 | L17: ='Seed, Fertilizer & Chemical'!J6 -> 166.5 | M17: ='Seed, Fertilizer & Chemical'!O28 -> 113.2378386 | N17: ='Seed, Fertilizer & Chemical'!D47 -> 84.02 | O17: ='Seed, Fertilizer & Chemical'!F47 -> 40.5 | P17: ='Seed, Fertilizer & Chemical'!G47 -> 0 | Q17: ='Op. Cost Input'!D15 -> 37.22257232 | R17: ='Op. Cost Input'!$D$6 -> 25 | S17: ='Fixed Cost Input'!$I$20 -> 0 | T17: ='Op. Cost Input'!N15 -> 0 | U17: ='Op. Cost Input'!$D$5*'Op. Cost Input'!$C15 -> 5.2 | V17: ='Op. Cost Input'!E15 -> 57 | W17: ='Op. Cost Input'!F15 -> 21.875 | X17: ='Op. Cost Input'!$D$7 -> 17.75 | Y17: ='Op. Cost Input'!$D$4 -> 17.5 | Z17: ='Op. Cost Input'!H15 -> 6.279323324 | AA17: =IF('Op. Cost Input'!G15="-",0,'Op. Cost Input'!G15) -> 0 | AB17: =ROUND(SUM(L17:AA17)/2*('Op. Cost Input'!$D$3),2) -> 22.94 | AC17: 615.0247343 | AD17: ='Fixed Cost Input'!$D$14 -> 97.17294514 | AE17: ='Fixed Cost Input'!$I$17+'Fixed Cost Input'!$J$17 -> 96.73101499 | AF17: 193.9039601 | AG17: 808.9286944 | AH17: ='Op. Cost Input'!$D$5*'Op. Cost Input'!$D$9 -> 26 | AI17: 834.9286944 | AJ17: =IF($B$14="80% Insured Value",HLOOKUP($V$14,$D$57:$H$64,4,FALSE),IF($B$14="70% Insured Value",HLOOKUP($V$14,#REF!,4,FALSE),HLOOKUP($V$14,#REF!,5,FALSE))) -> 655.044 | AK17: 0.08701705534 | AL17: 710.5 | AM17: -124.4286944 | AN17: 0.8656224268 | AO17: 0.5758128927 | AP17: 1703.9 | AQ17: 0.8509889078 | AR17: 1.06506936 | AS17: =SUM((AL17-AC17-AH17-('Fixed Cost Input'!$I$15+'Fixed Cost Input'!$J$15))/(('Fixed Cost Input'!$D$4)+'Fixed Cost Input'!$I$5+'Fixed Cost Input'!$J$5)) -> 0.008112904964 | AT17: -0.1490291269 | AV17: 1.06506936 | AW17: 0.7845508298 | AX17: 0.8509889078 | BO17: 710.5
B18: Hempseed | C18: =HLOOKUP($B$13,$C$46:$G$53,2,FALSE) -> 750 | D18: lb | E18: 0.9 | F18: 1 | G18: 2 | H18: =$C$37 -> 8635.6 | I18: 3 | J18: =$D$37 -> 5604 | K18: 2 | L18: ='Seed, Fertilizer & Chemical'!J4 -> 58.75 | M18: ='Seed, Fertilizer & Chemical'!O26 -> 113.2378386 | N18: ='Seed, Fertilizer & Chemical'!D45 -> 52.13 | O18: ='Seed, Fertilizer & Chemical'!F45 -> 0 | P18: ='Seed, Fertilizer & Chemical'!G45 -> 0 | Q18: ='Op. Cost Input'!D13 -> 38.71554474 | R18: ='Op. Cost Input'!$D$6 -> 25 | S18: ='Fixed Cost Input'!$I$20 -> 0 | T18: ='Op. Cost Input'!N13 -> 0 | U18: ='Op. Cost Input'!$D$5*'Op. Cost Input'!$C14 -> 5.2 | V18: ='Op. Cost Input'!E13 -> 36.75 | W18: ='Op. Cost Input'!F13 -> 25 | X18: ='Op. Cost Input'!$D$7 -> 17.75 | Y18: ='Op. Cost Input'!$D$4 -> 17.5 | Z18: ='Op. Cost Input'!H13 -> 4.428989806 | AA18: =IF('Op. Cost Input'!G13="-",0,'Op. Cost Input'!G13) -> 0 | AB18: =ROUND(SUM(L18:AA18)/2*('Op. Cost Input'!$D$3),2) -> 15.29 | AC18: 409.7523732 | AD18: ='Fixed Cost Input'!$D$14 -> 97.17294514 | AE18: ='Fixed Cost Input'!$I$17 -> 86.36697767 | AF18: 183.5399228 | AG18: 593.292296 | AH18: ='Op. Cost Input'!$D$5*'Op. Cost Input'!$D$9 -> 26 | AI18: 619.292296 | AJ18: =IF($B$14="80% Insured Value",HLOOKUP($V$14,$D$57:$H$64,2,FALSE),IF($B$14="70% Insured Value",HLOOKUP($V$14,#REF!,2,FALSE),HLOOKUP($V$14,#REF!,2,FALSE))) -> 396.24 | AK18: 0.09274682011 | AL18: 675 | AM18: 55.70770404 | AN18: 0.6070405528 | AO18: 0.8257230613 | AP18: 688.1 | AQ18: 1.089957855 | AR18: 0.9670230753 | AS18: =SUM((AL18-AC18-AH18-'Fixed Cost Input'!$I$15)/(('Fixed Cost Input'!$D$4)+'Fixed Cost Input'!$I$5+'Fixed Cost Input'!$J$5)) -> 0.04731968043 | AT18: 0.08995381406 | AV18: 0.9670230753 | AW18: 0.63982711 | AX18: 1.089957855 | BO18: 675
B19: Fababean | C19: =HLOOKUP($B$13,$C$46:$G$53,7,FALSE) -> 2300 | D19: lb | E19: 0.23 | F19: 6 | G19: 4 | H19: =$C$42 -> 5152.6 | I19: 4 | J19: =$D$42 -> 0 | K19: 7 | L19: ='Seed, Fertilizer & Chemical'!J9 -> 54 | M19: ='Seed, Fertilizer & Chemical'!O31 -> 54.80964045 | N19: ='Seed, Fertilizer & Chemical'!D50 -> 15.5 | O19: ='Seed, Fertilizer & Chemical'!F50 -> 0 | P19: ='Seed, Fertilizer & Chemical'!G50 -> 0 | Q19: ='Op. Cost Input'!D18 -> 35.04942505 | R19: ='Op. Cost Input'!$D$6 -> 25 | S19: ='Fixed Cost Input'!$I$20 -> 0 | T19: ='Op. Cost Input'!N18 -> 0 | U19: ='Op. Cost Input'!$D$5*'Op. Cost Input'!$C16 -> 5.2 | V19: ='Op. Cost Input'!E18 -> 36.75 | W19: ='Op. Cost Input'!F18 -> 21.875 | X19: ='Op. Cost Input'!$D$7 -> 17.75 | Y19: ='Op. Cost Input'!$D$4 -> 17.5 | Z19: ='Op. Cost Input'!H18 -> 9.960305963 | AA19: =IF('Op. Cost Input'!G18="-",0,'Op. Cost Input'!G18) -> 0 | AB19: =ROUND(SUM(L19:AA19)/2*('Op. Cost Input'!$D$3),2) -> 11.37 | AC19: 304.7643715 | AD19: ='Fixed Cost Input'!$D$14 -> 97.17294514 | AE19: ='Fixed Cost Input'!$I$17 -> 86.36697767 | AF19: 183.5399228 | AG19: 488.3042943 | AH19: ='Op. Cost Input'!$D$5*'Op. Cost Input'!$D$9 -> 26 | AI19: 514.3042943 | AJ19: =IF($B$14="80% Insured Value",HLOOKUP($V$14,$D$57:$H$64,7,FALSE),IF($B$14="70% Insured Value",HLOOKUP($V$14,#REF!,7,FALSE),HLOOKUP($V$14,#REF!,7,FALSE))) -> 237.44 | AK19: 0.1547759434 | AL19: 529 | AM19: 14.69570573 | AN19: 0.5761141238 | AO19: 0.2236105627 | AP19: 2236.1 | AQ19: 1.02857654 | AR19: 0.7790936941 | AS19: =SUM((AL19-AC19-AH19-'Fixed Cost Input'!$I$15)/(('Fixed Cost Input'!$D$4)+'Fixed Cost Input'!$I$5+'Fixed Cost Input'!$J$5)) -> 0.0380451444 | AT19: 0.02857395105 | AV19: 0.7790936941 | AW19: 0.4616722097 | AX19: 1.02857654 | BO19: 529
B20: Buckwheat | C20: =HLOOKUP($B$13,$C$46:$G$53,5,FALSE) -> 16 | D20: bu | E20: 17.5 | F20: 4 | G20: 5 | H20: =$C$40 -> 4909 | I20: 5 | J20: =$D$40 -> 2834 | K20: 5 | L20: ='Seed, Fertilizer & Chemical'!J7 -> 25 | M20: ='Seed, Fertilizer & Chemical'!O29 -> 61.14161539 | N20: ='Seed, Fertilizer & Chemical'!D48 -> 6.5 | O20: ='Seed, Fertilizer & Chemical'!F48 -> 0 | P20: ='Seed, Fertilizer & Chemical'!G48 -> 0 | Q20: ='Op. Cost Input'!D16 -> 33.59715133 | R20: ='Op. Cost Input'!$D$6 -> 25 | S20: ='Fixed Cost Input'!$I$20 -> 0 | T20: ='Op. Cost Input'!N16 -> 0 | U20: ='Op. Cost Input'!$D$5*'Op. Cost Input'!$C17 -> 5.2 | V20: ='Op. Cost Input'!E16 -> 19.75 | W20: ='Op. Cost Input'!F16 -> 31.25 | X20: ='Op. Cost Input'!$D$7 -> 17.75 | Y20: ='Op. Cost Input'!$D$4 -> 17.5 | Z20: ='Op. Cost Input'!H16 -> 4.157345098 | AA20: =IF('Op. Cost Input'!G16="-",0,'Op. Cost Input'!G16) -> 0 | AB20: =ROUND(SUM(L20:AA20)/2*('Op. Cost Input'!$D$3),2) -> 9.57 | AC20: 256.4161118 | AD20: ='Fixed Cost Input'!$D$14 -> 97.17294514 | AE20: ='Fixed Cost Input'!$I$17 -> 86.36697767 | AF20: 183.5399228 | AG20: 439.9560346 | AH20: ='Op. Cost Input'!$D$5*'Op. Cost Input'!$D$9 -> 26 | AI20: 465.9560346 | AJ20: =IF($B$14="80% Insured Value",HLOOKUP($V$14,$D$57:$H$64,5,FALSE),IF($B$14="70% Insured Value",HLOOKUP($V$14,#REF!,5,FALSE),HLOOKUP($V$14,#REF!,5,FALSE))) -> 151.632 | AK20: 0.1302495515 | AL20: 280 | AM20: -185.9560346 | AN20: 0.9157718279 | AO20: 29.12225216 | AP20: 26.6 | AQ20: 0.6015037594 | AR20: 0.5913512959 | AS20: =SUM((AL20-AC20-AH20-'Fixed Cost Input'!$I$15)/(('Fixed Cost Input'!$D$4)+'Fixed Cost Input'!$I$5+'Fixed Cost Input'!$J$5)) -> -0.007330644915 | AT20: -0.3990849368 | AV20: 0.5913512959 | AW20: 0.3254212602 | AX20: 0.6015037594 | BO20: 280
B21: Canaryseed | C21: =HLOOKUP($B$13,$C$46:$G$53,6,FALSE) -> 1550 | D21: lb | E21: 0.35 | F21: 5 | G21: 6 | H21: =$C$41 -> 4369.2 | I21: 6 | J21: =$D$41 -> 4990 | K21: 3 | L21: ='Seed, Fertilizer & Chemical'!J8 -> 33 | M21: ='Seed, Fertilizer & Chemical'!O30 -> 97.95243476 | N21: ='Seed, Fertilizer & Chemical'!D49 -> 14.42 | O21: ='Seed, Fertilizer & Chemical'!F49 -> 16.25 | P21: ='Seed, Fertilizer & Chemical'!G49 -> 0 | Q21: ='Op. Cost Input'!D17 -> 36.83823069 | R21: ='Op. Cost Input'!$D$6 -> 25 | S21: ='Fixed Cost Input'!$I$20 -> 0 | T21: ='Op. Cost Input'!N17 -> 0 | U21: ='Op. Cost Input'!$D$5*'Op. Cost Input'!$C18 -> 5.2 | V21: ='Op. Cost Input'!E17 -> 30.75 | W21: ='Op. Cost Input'!F17 -> 12.5 | X21: ='Op. Cost Input'!$D$7 -> 17.75 | Y21: ='Op. Cost Input'!$D$4 -> 17.5 | Z21: ='Op. Cost Input'!H17 -> 8.054856126 | AA21: =IF('Op. Cost Input'!G17="-",0,'Op. Cost Input'!G17) -> 0 | AB21: =ROUND(SUM(L21:AA21)/2*('Op. Cost Input'!$D$3),2) -> 12.21 | AC21: 327.4255216 | AD21: ='Fixed Cost Input'!$D$14 -> 97.17294514 | AE21: ='Fixed Cost Input'!$I$17 -> 86.36697767 | AF21: 183.5399228 | AG21: 510.9654444 | AH21: ='Op. Cost Input'!$D$5*'Op. Cost Input'!$D$9 -> 26 | AI21: 536.9654444 | AJ21: =IF($B$14="80% Insured Value",HLOOKUP($V$14,$D$57:$H$64,6,FALSE),IF($B$14="70% Insured Value",HLOOKUP($V$14,#REF!,6,FALSE),HLOOKUP($V$14,#REF!,6,FALSE))) -> 434.88 | AK21: 0.07070916115 | AL21: 542.5 | AM21: 5.534555608 | AN21: 0.6035493485 | AO21: 0.346429319 | AP21: 1534.2 | AQ21: 1.010298527 | AR21: 1.328179911 | AS21: =SUM((AL21-AC21-AH21-'Fixed Cost Input'!$I$15)/(('Fixed Cost Input'!$D$4)+'Fixed Cost Input'!$I$5+'Fixed Cost Input'!$J$5)) -> 0.03597342343 | AT21: 0.01030709828 | AV21: 1.328179911 | AW21: 0.8098845178 | AX21: 1.010298527 | BO21: 542.5
B22: Lentil | C22: =HLOOKUP($B$13,$C$46:$G$53,8,FALSE) -> 1125 | D22: lb | E22: 0.42 | F22: 7 | G22: 7 | H22: =$C$43 -> 1564.2 | I22: 7 | J22: =$D$43 -> 1003 | K22: 6 | L22: ='Seed, Fertilizer & Chemical'!J10 -> 70 | M22: ='Seed, Fertilizer & Chemical'!O32 -> 28.34981403 | N22: ='Seed, Fertilizer & Chemical'!D51 -> 16 | O22: ='Seed, Fertilizer & Chemical'!F51 -> 14.35 | P22: ='Seed, Fertilizer & Chemical'!G51 -> 0 | Q22: ='Op. Cost Input'!D19 -> 31.89509921 | R22: ='Op. Cost Input'!$D$6 -> 25 | S22: ='Fixed Cost Input'!$I$20 -> 0 | T22: ='Op. Cost Input'!N19 -> 0 | U22: ='Op. Cost Input'!$D$5*'Op. Cost Input'!$C19 -> 5.2 | V22: ='Op. Cost Input'!E19 -> 20.5 | W22: ='Op. Cost Input'!F19 -> 16.25 | X22: ='Op. Cost Input'!$D$7 -> 17.75 | Y22: ='Op. Cost Input'!$D$4 -> 17.5 | Z22: ='Op. Cost Input'!H19 -> 4.871888786 | AA22: =IF('Op. Cost Input'!G19="-",0,'Op. Cost Input'!G19) -> 0 | AB22: =ROUND(SUM(L22:AA22)/2*('Op. Cost Input'!$D$3),2) -> 10.37 | AC22: 278.036802 | AD22: ='Fixed Cost Input'!$D$14 -> 97.17294514 | AE22: ='Fixed Cost Input'!$I$17 -> 86.36697767 | AF22: 183.5399228 | AG22: 461.5767248 | AH22: ='Op. Cost Input'!$D$5*'Op. Cost Input'!$D$9 -> 26 | AI22: 487.5767248 | AJ22: =IF($B$14="80% Insured Value",HLOOKUP($V$14,$D$57:$H$64,8,FALSE),IF($B$14="70% Insured Value",HLOOKUP($V$14,#REF!,8,FALSE),HLOOKUP($V$14,#REF!,8,FALSE))) -> 250.56 | AK22: 0.08181673052 | AL22: 472.5 | AM22: -15.07672483 | AN22: 0.5884376762 | AO22: 0.4334015332 | AP22: 1160.9 | AQ22: 0.9690757171 | AR22: 0.9011756652 | AS22: =SUM((AL22-AC22-AH22-'Fixed Cost Input'!$I$15)/(('Fixed Cost Input'!$D$4)+'Fixed Cost Input'!$I$5+'Fixed Cost Input'!$J$5)) -> 0.0313123469 | AT22: -0.03092174844 | AV22: 0.9011756652 | AW22: 0.5138883528 | AX22: 0.9690757171 | BO22: 472.5
B25: MASC Seeded Acreage SAR - Market Variety Share Report
C26: 5yr | D26: 2022 | E26: 2021 | F26: 2020 | G26: 2019 | H26: 2018 | I26: 2017 | J26: 2016 | K26: 2015 | L26: 2014 | M26: 2013 | N26: 2012 | T26: $/MT | U26: unit | V26: $/unit
B27: Hempseed | C27: =AVERAGE(D27:H27) -> 8635.6 | D27: 5604 | E27: 6131 | F27: 11308 | G27: 10009 | H27: 10126 | I27: 27296 | J27: 14491 | K27: 21220 | L27: 17453 | M27: 11297 | N27: 14403 | S27: Hempseed | T27: 1653 | U27: 2204.62 | V27: =SUM(T27/U27) -> 0.7497890793
B28: Black Bean | C28: =AVERAGE(D28:H28) -> 24951.4 | D28: 21053 | E28: 27846 | F28: 20940 | G28: 27308 | H28: 27610 | I28: 22409 | J28: 17512 | K28: 20302 | L28: 14921 | M28: 9535 | N28: 14498 | S28: Black Bean | T28: 725 | U28: 2204.62 | V28: 0.3288548593
B29: Kidney Bean | C29: 9803 | D29: 4300 | E29: 9454 | F29: =12402 -> 12402 | G29: 12358 | H29: 10501 | I29: 8136 | J29: 11906 | K29: 16604 | L29: 17210 | M29: 8734 | N29: 9319 | S29: Kidney Bean | T29: 925 | U29: 2204.62 | V29: 0.4195734412
B30: Buckwheat | C30: 4909 | D30: 2834 | E30: =4416 -> 4416 | F30: 5681 | G30: 6766 | H30: 4848 | I30: 5645 | J30: 11083 | K30: 8921 | L30: 2599 | M30: 5094 | N30: 11535 | S30: Buckwheat | T30: 645 | U30: 50 | V30: 12.9
B31: Canaryseed | C31: 4369.2 | D31: 4990 | E31: 6979 | F31: 5120 | G31: 3179 | H31: 1578 | I31: 4283 | J31: 7635 | K31: 9449 | L31: 2009 | M31: 6422 | N31: 12135 | S31: Canaryseed | T31: 475 | U31: 2204.62 | V31: 0.215456632
B32: Fababean | C32: 5152.6 | D32: 0 | E32: 5206 | F32: 6679 | G32: 8052 | H32: 5826 | I32: 8379 | J32: 9596 | K32: 9040 | L32: 3468 | M32: 2377 | N32: 3463 | S32: Fababean | T32: 185 | U32: 2204.62 | V32: 0.08391468825
B33: Lentil | C33: 1564.2 | D33: 1003 | E33: 1070 | F33: 2522 | G33: 1542 | H33: 1684 | I33: 2681 | J33: 9957 | K33: 1707 | L33: 0 | M33: 533 | N33: 877 | S33: Lentil | T33: 400 | U33: 2204.62 | V33: 0.1814371638
B35: MASC Seeded Acreage (for COP)
C36: 5yr | D36: 2022 | E36: 2021 | F36: 2020 | G36: 2019 | H36: 2018 | I36: 2017 | J36: 2016 | K36: 2015 | L36: 2014 | M36: 2013 | N36: 2012
B37: Hempseed | C37: =AVERAGE(D37:H37) -> 8635.6 | D37: =D27 -> 5604 | E37: 6131 | F37: 11308 | G37: 10009 | H37: 10126 | I37: 27296 | J37: 14491 | K37: 21220 | L37: 17453 | M37: 11297 | N37: 14403
B38: Black Bean | C38: =AVERAGE(D38:H38) -> 24951.4 | D38: =D28 -> 21053 | E38: 27846 | F38: 20940 | G38: 27308 | H38: 27610 | I38: 22409 | J38: 17512 | K38: 20302 | L38: 14921 | M38: 9535 | N38: 14498
B39: Kidney Bean | C39: 9803 | D39: =D29 -> 4300 | E39: 9454 | F39: 12402 | G39: 12358 | H39: 10501 | I39: 8136 | J39: 11906 | K39: 16604 | L39: 17210 | M39: 8734 | N39: 9319
B40: Buckwheat | C40: 4909 | D40: =D30 -> 2834 | E40: 4416 | F40: 5681 | G40: 6766 | H40: 4848 | I40: 5645 | J40: 11083 | K40: 8921 | L40: 2599 | M40: 5094 | N40: 11535
B41: Canaryseed | C41: 4369.2 | D41: =D31 -> 4990 | E41: 6979 | F41: 5120 | G41: 3179 | H41: 1578 | I41: 4283 | J41: 7635 | K41: 9449 | L41: 2009 | M41: 6422 | N41: 12135
B42: Fababean | C42: 5152.6 | D42: =D32 -> 0 | E42: 5206 | F42: 6679 | G42: 8052 | H42: 5826 | I42: 8379 | J42: 9596 | K42: 9040 | L42: 3468 | M42: 2377 | N42: 3463
B43: Lentil | C43: 1564.2 | D43: =D33 -> 1003 | E43: 1070 | F43: 2522 | G43: 1542 | H43: 1684 | I43: 2681 | J43: 9957 | K43: 1707 | L43: 0 | M43: =M33 -> 533 | N43: =N33 -> 877
B45: 2022 MASC data | C45: COP
B46: Expected Yield 'D' | C46: Manitoba | D46: RA#2 | E46: RA#5 | F46: RA#6 | G46: RA#12 | H46: Avg. | N46: 80% Insured Value
B47: Hempseed | C47: 750 | D47: 762 | E47: 762 | F47: 762 | G47: 762 | H47: 762 | N47: 70% Insured Value
B48: Black Bean | C48: 1700 | D48: 1728 | E48: 1728 | F48: 1382 | G48: 1728 | H48: 1641.5 | N48: 50% Insured Value
B49: Kidney Bean | C49: 1450 | D49: 1512 | E49: 1512 | F49: 1210 | G49: 1512 | H49: 1436.5
B50: Buckwheat | C50: 16 | D50: 13.5 | E50: 13.5 | F50: 13.5 | G50: 13.5 | H50: 13.5
B51: Canaryseed | C51: 1550 | D51: 1510 | E51: 1510 | F51: 1510 | G51: 1510 | H51: 1510
B52: Fababean | C52: 2300 | D52: 2120 | E52: 2120 | F52: 2120 | G52: 2120 | H52: 2120
B53: Lentil | C53: 1125 | D53: 1160 | E53: 1160 | F53: 1160 | G53: 1160 | H53: 1160
C55: **Mkt Prices are Changed E16 to E22 above***
B56: 80% Insured Value | C56: 2022 | D56: Avg 2,5,6,12
C57: ins.$/bu | D57: Manitoba | E57: RA#2 | F57: RA#5 | G57: RA#6 | H57: RA#12
B58: Hempseed | C58: 0.65 | D58: 396.24 | E58: 396.24 | F58: 396.24 | G58: 396.24 | H58: 396.24 | K58: 379.776 | L58: 1.2 | M58: =ROUND(K58*L58,-1) -> 460
B59: Black Bean | C59: 0.43 | D59: 564.676 | E59: 594.432 | F59: 594.432 | G59: 475.408 | H59: 594.432 | K59: 432.276 | L59: 1.2 | M59: =ROUND(K59*L59,-1) -> 520
B60: Kidney Bean | C60: 0.57 | D60: 655.044 | E60: 689.472 | F60: 689.472 | G60: 551.76 | H60: 689.472 | K60: 511.2 | L60: 1.2 | M60: 610
B61: Buckwheat | C61: 14.04 | D61: 151.632 | E61: 151.632 | F61: 151.632 | G61: 151.632 | H61: 151.632 | K61: 150.5088 | L61: 1.2 | M61: 180
B62: Canaryseed | C62: 0.36 | D62: 434.88 | E62: 434.88 | F62: 434.88 | G62: 434.88 | H62: 434.88 | K62: 350.56 | L62: 1.2 | M62: 420
B63: Fababean | C63: 0.14 | D63: 237.44 | E63: 237.44 | F63: 237.44 | G63: 237.44 | H63: 237.44 | K63: 164.32 | L63: 1.2 | M63: 200
B64: Lentil | C64: 0.27 | D64: 250.56 | E64: 250.56 | F64: 250.56 | G64: 250.56 | H64: 250.56 | K64: 212.16 | L64: 1.2 | M64: 250
C67: Avg 2,5,6,12
B68: 80% Crop | C68: Manitoba | D68: RA#2 | E68: RA#5 | F68: RA#6 | G68: RA#12 | H68: Avg.
B69: Hempseed | C69: 35.15 | D69: 35.08 | E69: 35.08 | F69: 35.88 | G69: 34.56 | H69: 35.15 | K69: 30.1025 | L69: 1.2 | M69: =K69*L69 -> 36.123
B70: Black Bean | C70: 39.0325 | D70: 39.1 | E70: 38.84 | F70: 39.82 | G70: 38.37 | H70: 39.0325 | K70: 27.4425 | L70: 1.2 | M70: =K70*L70 -> 32.931
B71: Kidney Bean | C71: 55.4225 | D71: 55.17 | E71: 55.17 | F71: 56.98 | G71: 54.37 | H71: 55.4225 | K71: 39.66 | L71: 1.2 | M71: 47.592
B72: Buckwheat | C72: 18.0725 | D72: 18.01 | E72: 18.01 | F72: 18.5 | G72: 17.77 | H72: 18.0725 | K72: 15.48 | L72: 1.2 | M72: 18.576
B73: Canaryseed | C73: 29.105 | D73: 28.98 | E73: 28.98 | F73: 29.83 | G73: 28.63 | H73: 29.105 | K73: 19.5475 | L73: 1.2 | M73: 23.457
B74: Fababean | C74: 35.15 | D74: 35.08 | E74: 35.08 | F74: 35.88 | G74: 34.56 | H74: 35.15 | K74: 30.1025 | L74: 1.2 | M74: 36.123
B75: Lentil | C75: 18.9625 | D75: 18.87 | E75: 18.87 | F75: 19.41 | G75: 18.7 | H75: 18.9625 | K75: 13.86 | L75: 1.2 | M75: 16.632
B77: Base EMI premium / acre ($100) | D77: 1.59 | F77: 200
F78: 300
B79: Hail Ins. coverage / acre | F79: 400
C81: Rate | D81: Avg 2,5,6,12 | E81: Cost per Acre
B82: HAIL Ins. Costs | C82: Factor | D82: Manitoba | E82: RA#2 | F82: RA#5 | G82: RA#6 | H82: RA#12
B83: =W13 -> 400 | E83: 3.3 | F83: 3.7 | G83: 3 | H83: 2.5
B84: Hempseed | C84: 2 | D84: =AVERAGE(E84,F84,G84,H84) -> 25 | E84: =(($E$83*$C84)/100)*$W$13 -> 26.4 | F84: =(($F$83*$C84)/100)*$W$13 -> 29.6 | G84: =(($G$83*$C84)/100)*$W$13 -> 24 | H84: =(($H$83*$C84)/100)*$W$13 -> 20
B85: Black Bean | C85: 1.75 | D85: 21.875 | E85: =(($E$83*$C85)/100)*$W$13 -> 23.1 | F85: 25.9 | G85: 21 | H85: 17.5
B86: Kidney Bean | C86: 1.75 | D86: 21.875 | E86: 23.1 | F86: 25.9 | G86: 21 | H86: 17.5
B87: Buckwheat | C87: 2.5 | D87: 31.25 | E87: 33 | F87: 37 | G87: 30 | H87: 25
B88: Canaryseed | C88: 1 | D88: 12.5 | E88: 13.2 | F88: 14.8 | G88: 12 | H88: 10
B89: Fababean | C89: 1.75 | D89: 21.875 | E89: 23.1 | F89: 25.9 | G89: 21 | H89: 17.5
B90: Lentil | C90: 1.3 | D90: 16.25 | E90: 17.16 | F90: 19.24 | G90: 15.6 | H90: 13
B93: Data Source – MASC Harvest Production Reports (2010-2015)
D94: Crop planted
B95: Stubble | D95: Wheat - Hard Red Spring | E95: Wheat - Northern Hard Red | F95: Wheat - Special Purpose | G95: Wheat - Prairie Spring | H95: Wheat - Winter | I95: Oats | J95: Barley | K95: Canola | L95: Flaxseed | M95: Peas | N95: Soybeans | O95: Beans - White | P95: Sunflower Oil | Q95: Sunflower Confection | R95: Corn
B96: Wheat - Hard Red Spring | C96: 2 | D96: 85 | E96: 85 | F96: 85 | G96: 85 | H96: 84 | I96: 98 | J96: 96 | K96: 102 | L96: 105 | M96: 103 | N96: 101 | O96: 106 | P96: 101 | Q96: 101 | R96: 98
B97: Wheat - Northern Hard Red | C97: 3 | D97: 85 | E97: 85 | F97: 85 | G97: 85 | H97: 84 | I97: 98 | J97: 96 | K97: 102 | L97: 105 | M97: 103 | N97: 101 | O97: 106 | P97: 101 | Q97: 101 | R97: 98
B98: Wheat - Special Purpose | C98: 4 | D98: 85 | E98: 85 | F98: 85 | G98: 85 | H98: 84 | I98: 98 | J98: 96 | K98: 102 | L98: 105 | M98: 103 | N98: 101 | O98: 106 | P98: 101 | Q98: 101 | R98: 98
B99: Wheat - Prairie Spring | C99: 5 | D99: 85 | E99: 85 | F99: 85 | G99: 85 | H99: 84 | I99: 98 | J99: 96 | K99: 102 | L99: 105 | M99: 103 | N99: 101 | O99: 106 | P99: 101 | Q99: 101 | R99: 98
B100: Wheat - Winter | C100: 6 | D100: 75 | E100: 75 | F100: 75 | G100: 75 | H100: 83 | I100: 97 | J100: 105 | K100: 98 | L100: 94 | M100: 112 | N100: 105 | O100: 83 | P100: 87 | Q100: 87 | R100: 74
B101: Oats | C101: 7 | D101: 93 | E101: 93 | F101: 93 | G101: 93 | H101: 86 | I101: 77 | J101: 78 | K101: 95 | L101: 92 | M101: 94 | N101: 100 | O101: 77 | P101: 104 | Q101: 104 | R101: 99
B102: Barley | C102: 8 | D102: 90 | E102: 90 | F102: 90 | G102: 90 | H102: 91 | I102: 90 | J102: 85 | K102: 104 | L102: 104 | M102: 93 | N102: 101 | O102: 67 | P102: 100 | Q102: 100 | R102: 92
B103: Canola | C103: 9 | D103: 101 | E103: 101 | F103: 101 | G103: 101 | H103: 105 | I103: 101 | J103: 102 | K103: 86 | L103: 87 | M103: 96 | N103: 100 | O103: 99 | P103: 75 | Q103: 75 | R103: 99
B104: Flaxseed | C104: 10 | D104: 96 | E104: 96 | F104: 96 | G104: 96 | H104: 104 | I104: 97 | J104: 106 | K104: 103 | L104: 79 | M104: 86 | N104: 98 | O104: 100 | P104: 71 | Q104: 71 | R104: 78
B105: Peas | C105: 11 | D105: 101 | E105: 101 | F105: 101 | G105: 101 | H105: 82 | I105: 112 | J105: 102 | K105: 104 | L105: 145 | M105: 100 | N105: 68 | O105: 100 | P105: 100 | Q105: 100 | R105: 94
B106: Soybeans | C106: 12 | D106: 108 | E106: 108 | F106: 108 | G106: 108 | H106: 93 | I106: 108 | J106: 108 | K106: 104 | L106: 104 | M106: 96 | N106: 94 | O106: 100 | P106: 101 | Q106: 101 | R106: 103
B107: Beans - White | C107: 13 | D107: 119 | E107: 119 | F107: 119 | G107: 119 | H107: 100 | I107: 115 | J107: 114 | K107: 119 | L107: 100 | M107: 100 | N107: 107 | O107: 78 | P107: 100 | Q107: 100 | R107: 111
B108: Sunflower Oil | C108: 14 | D108: 102 | E108: 102 | F108: 102 | G108: 102 | H108: 100 | I108: 103 | J108: 103 | K108: 91 | L108: 101 | M108: 100 | N108: 93 | O108: 100 | P108: 100 | Q108: 100 | R108: 95
B109: Sunflower Confection | C109: 15 | D109: 102 | E109: 102 | F109: 102 | G109: 102 | H109: 100 | I109: 103 | J109: 103 | K109: 91 | L109: 101 | M109: 100 | N109: 93 | O109: 100 | P109: 100 | Q109: 100 | R109: 95
B110: Corn | C110: 16 | D110: 98 | E110: 98 | F110: 98 | G110: 98 | H110: 67 | I110: 111 | J110: 96 | K110: 112 | L110: 100 | M110: 100 | N110: 102 | O110: 61 | P110: 119 | Q110: 119 | R110: 89
